{"text_format":"1","workbook":"xlsx","n_sheets":14,"sheets":["Calendrier","Juin","Juillet","Août","Septembre","Octobre","Novembre","Décembre","Janvier","Février","Mars","Avril","Mai","Feuil14"],"not_rendered":{"charts":0,"images":0,"macros":1,"external_links":1,"defined_names":2,"comments":1,"pivot_tables":0},"unopened":[],"bounds":{"document_bytes":16777216,"sheet_cells":100000,"rows_first":2000,"rows_last":500,"rows_between":2000,"halvings":0,"cell_chars":16384,"cell_head_chars":4096},"cells_cut":0,"cells_raw":0,"read":"whole","date_system":"1900"}

{"sheet":"Calendrier","index":0,"n_rows":410,"n_cols":45,"rows_kept":410,"cut":false,"hidden":false,"merged":[[1,23,1,24],[2,23,2,24],[3,23,3,24],[68,8,68,9],[68,16,68,17],[68,10,68,14],[68,18,68,22],[29,18,29,24],[18,9,18,15],[0,1,0,2],[66,18,66,24],[0,29,0,35],[1,0,1,2],[1,4,1,6],[1,9,1,11],[2,0,2,2],[2,4,2,6],[2,9,2,11],[5,0,5,24],[7,0,7,6],[7,9,7,15],[7,18,7,24],[18,0,18,6],[29,0,29,6],[29,9,29,15],[40,0,40,6],[40,9,40,15],[40,18,40,24],[59,9,59,11],[57,9,57,11],[55,9,55,11],[59,21,59,23],[59,15,59,17],[55,21,55,23],[57,21,57,23],[57,15,57,17],[55,15,55,17],[74,16,74,22],[69,8,69,14],[63,9,63,11],[61,9,61,11],[65,9,65,11],[70,8,70,14],[40,27,40,35],[2,26,2,29],[73,16,73,22],[18,18,18,24],[79,16,79,22],[48,28,48,33],[49,28,49,33],[65,15,65,17],[65,21,65,23],[61,21,61,23],[61,15,61,17],[52,28,52,33],[63,21,63,23],[63,15,63,17],[53,20,53,24],[70,16,70,22],[79,32,79,35],[79,8,79,14],[69,16,69,22],[83,26,83,31],[82,27,82,29],[71,16,71,22],[71,8,71,14],[72,8,72,14],[73,8,73,14],[76,16,76,22],[78,16,78,22],[74,8,74,14],[75,8,75,14],[76,8,76,14],[77,8,77,14],[78,8,78,14],[2,32,2,33],[89,10,89,12],[84,9,84,17],[85,9,85,15],[86,32,86,33],[87,32,87,33],[84,32,84,34],[53,8,53,12],[53,14,53,18],[82,32,82,34],[83,32,83,34],[52,34,52,35],[54,28,54,33],[72,16,72,22],[77,16,77,22],[81,32,81,34]]}
[]
["Année",null,null,null,"Mois",null,null,null,null,"Start Day",null,null,null,null,null,"Nbre jours Excercice",null,null,null,null,null,null,":",{"$f":"EOMONTH($S$41,0)-$A$8+1","v":365}]
[2022,null,null,null,5,null,null,null,null,1,null,null,null,null,null,"Nbre semaines entières",null,null,null,null,null,null,":",{"$f":"SUMPRODUCT(N(WEEKDAY(ROW(INDIRECT($A$8&\":\"&EOMONTH($S$41,0)-6)),2)=1))","v":52}]
[null,null,null,null,null,null,null,null,null,null,null,null,null,null,null,"Nbre Dimanches",null,null,null,null,null,null,":",{"$f":"SUMPRODUCT(N(WEEKDAY(ROW(INDIRECT($A$8&\":\"&EOMONTH($S$41,0))),2)=7))","v":53}]
[]
[{"$f":"IF($E$3=1,A3,A3&\"-\"&A3+1)","v":"2022-2023"}]
[]
[{"$f":"DATE($A$3,$E$3,1)","v":"2022-05-01"},null,null,null,null,null,null,null,null,{"$f":"DATE(YEAR(A8+35),MONTH(A8+35),1)","v":"2022-06-01"},null,null,null,null,null,null,null,null,{"$f":"DATE(YEAR(J8+35),MONTH(J8+35),1)","v":"2022-07-01"}]
[{"$f":"INDEX({\"Lu\",\"Ma\",\"Me\",\"Je\",\"Ve\",\"Sa\",\"Di\"},1+MOD($J$3+1-2,7))","v":"Lu"},{"$f":"INDEX({\"Lu\",\"Ma\",\"Me\",\"Je\",\"Ve\",\"Sa\",\"Di\"},1+MOD($J$3+2-2,7))","v":"Ma"},{"$f":"INDEX({\"Lu\",\"Ma\",\"Me\",\"Je\",\"Ve\",\"Sa\",\"Di\"},1+MOD($J$3+3-2,7))","v":"Me"},{"$f":"INDEX({\"Lu\",\"Ma\",\"Me\",\"Je\",\"Ve\",\"Sa\",\"Di\"},1+MOD($J$3+4-2,7))","v":"Je"},{"$f":"INDEX({\"Lu\",\"Ma\",\"Me\",\"Je\",\"Ve\",\"Sa\",\"Di\"},1+MOD($J$3+5-2,7))","v":"Ve"},{"$f":"INDEX({\"Lu\",\"Ma\",\"Me\",\"Je\",\"Ve\",\"Sa\",\"Di\"},1+MOD($J$3+6-2,7))","v":"Sa"},{"$f":"INDEX({\"Lu\",\"Ma\",\"Me\",\"Je\",\"Ve\",\"Sa\",\"Di\"},1+MOD($J$3+7-2,7))","v":"Di"},null,null,{"$f":"$A$9","v":"Lu"},{"$f":"$B$9","v":"Ma"},{"$f":"$C$9","v":"Me"},{"$f":"$D$9","v":"Je"},{"$f":"$E$9","v":"Ve"},{"$f":"$F$9","v":"Sa"},{"$f":"$G$9","v":"Di"},null,null,{"$f":"$A$9","v":"Lu"},{"$f":"$B$9","v":"Ma"},{"$f":"$C$9","v":"Me"},{"$f":"$D$9","v":"Je"},{"$f":"$E$9","v":"Ve"},{"$f":"$F$9","v":"Sa"},{"$f":"$G$9","v":"Di"}]
[{"$f":"IF(MONTH($A$8)<>MONTH($A$8-WEEKDAY($A$8,2)+(ROW(A10)-ROW($A$10))*7+(COLUMN(A10)-COLUMN($A$10)+1)),\"\",$A$8-WEEKDAY($A$8,2)+(ROW(A10)-ROW($A$10))*7+(COLUMN(A10)-COLUMN($A$10)+1))","v":""},{"$f":"IF(MONTH($A$8)<>MONTH($A$8-WEEKDAY($A$8,2)+(ROW(B10)-ROW($A$10))*7+(COLUMN(B10)-COLUMN($A$10)+1)),\"\",$A$8-WEEKDAY($A$8,2)+(ROW(B10)-ROW($A$10))*7+(COLUMN(B10)-COLUMN($A$10)+1))","v":""},"","","",{"$f":"IF(MONTH($A$8)<>MONTH($A$8-WEEKDAY($A$8,2)+(ROW(F10)-ROW($A$10))*7+(COLUMN(F10)-COLUMN($A$10)+1)),\"\",$A$8-WEEKDAY($A$8,2)+(ROW(F10)-ROW($A$10))*7+(COLUMN(F10)-COLUMN($A$10)+1))","v":""},"2022-05-01",null,null,{"$f":"IF(MONTH($J$8)<>MONTH($J$8-WEEKDAY($J$8,2)+(ROW(J10)-ROW($J$10))*7+(COLUMN(J10)-COLUMN($J$10)+1)),\"\",$J$8-WEEKDAY($J$8,2)+(ROW(J10)-ROW($J$10))*7+(COLUMN(J10)-COLUMN($J$10)+1))","v":""},"","2022-06-01","2022-06-02","2022-06-03","2022-06-04","2022-06-05",null,null,{"$f":"IF(MONTH($S$8)<>MONTH($S$8-WEEKDAY($S$8,2)+(ROW(S10)-ROW($S$10))*7+(COLUMN(S10)-COLUMN($S$10)+1)),\"\",$S$8-WEEKDAY($S$8,2)+(ROW(S10)-ROW($S$10))*7+(COLUMN(S10)-COLUMN($S$10)+1))","v":""},{"$f":"IF(MONTH($S$8)<>MONTH($S$8-WEEKDAY($S$8,2)+(ROW(T10)-ROW($S$10))*7+(COLUMN(T10)-COLUMN($S$10)+1)),\"\",$S$8-WEEKDAY($S$8,2)+(ROW(T10)-ROW($S$10))*7+(COLUMN(T10)-COLUMN($S$10)+1))","v":""},"","","2022-07-01","2022-07-02","2022-07-03"]
[{"$f":"IF(MONTH($A$8)<>MONTH($A$8-WEEKDAY($A$8,2)+(ROW(A11)-ROW($A$10))*7+(COLUMN(A11)-COLUMN($A$10)+1)),\"\",$A$8-WEEKDAY($A$8,2)+(ROW(A11)-ROW($A$10))*7+(COLUMN(A11)-COLUMN($A$10)+1))","v":"2022-05-02"},"2022-05-03","2022-05-04","2022-05-05","2022-05-06","2022-05-07","2022-05-08",null,null,{"$f":"IF(MONTH($J$8)<>MONTH($J$8-WEEKDAY($J$8,2)+(ROW(J11)-ROW($J$10))*7+(COLUMN(J11)-COLUMN($J$10)+1)),\"\",$J$8-WEEKDAY($J$8,2)+(ROW(J11)-ROW($J$10))*7+(COLUMN(J11)-COLUMN($J$10)+1))","v":"2022-06-06"},"2022-06-07","2022-06-08","2022-06-09","2022-06-10","2022-06-11","2022-06-12",null,null,{"$f":"IF(MONTH($S$8)<>MONTH($S$8-WEEKDAY($S$8,2)+(ROW(S11)-ROW($S$10))*7+(COLUMN(S11)-COLUMN($S$10)+1)),\"\",$S$8-WEEKDAY($S$8,2)+(ROW(S11)-ROW($S$10))*7+(COLUMN(S11)-COLUMN($S$10)+1))","v":"2022-07-04"},"2022-07-05","2022-07-06","2022-07-07","2022-07-08","2022-07-09","2022-07-10"]
["2022-05-09","2022-05-10","2022-05-11","2022-05-12","2022-05-13","2022-05-14","2022-05-15",null,null,"2022-06-13","2022-06-14","2022-06-15","2022-06-16","2022-06-17","2022-06-18","2022-06-19",null,null,"2022-07-11","2022-07-12","2022-07-13","2022-07-14","2022-07-15","2022-07-16","2022-07-17"]
["2022-05-16","2022-05-17","2022-05-18","2022-05-19","2022-05-20","2022-05-21","2022-05-22",null,null,"2022-06-20","2022-06-21","2022-06-22","2022-06-23","2022-06-24","2022-06-25","2022-06-26",null,null,"2022-07-18","2022-07-19","2022-07-20","2022-07-21","2022-07-22","2022-07-23","2022-07-24"]
["2022-05-23","2022-05-24","2022-05-25","2022-05-26","2022-05-27","2022-05-28","2022-05-29",null,null,"2022-06-27","2022-06-28","2022-06-29","2022-06-30","","","",null,null,"2022-07-25","2022-07-26","2022-07-27","2022-07-28","2022-07-29","2022-07-30","2022-07-31"]
["2022-05-30","2022-05-31","","","","","",null,null,"","","","","","","",null,null,"","","","","","",""]
["JT :",{"$f":"[1]!NB_SI_COULEUR(A10:G15,[1]!NO_COULEUR($A$56))","v":{"$error":"#NAME?"}},"RH :",{"$f":"[1]!NB_SI_COULEUR(A10:G15,[1]!NO_COULEUR($A$58))","v":{"$error":"#NAME?"}},null,"RTT :",{"$f":"[1]!NB_SI_COULEUR(A10:G15,[1]!NO_COULEUR($A$60))","v":{"$error":"#NAME?"}},null,null,"JT :",{"$f":"[1]!NB_SI_COULEUR(J10:P15,[1]!NO_COULEUR($A$56))","v":{"$error":"#NAME?"}},"RH :",{"$f":"[1]!NB_SI_COULEUR(J10:P15,[1]!NO_COULEUR($A$58))","v":{"$error":"#NAME?"}},null,"RTT :",{"$f":"[1]!NB_SI_COULEUR(J10:P15,[1]!NO_COULEUR($A$60))","v":{"$error":"#NAME?"}},null,null,"JT :",{"$f":"[1]!NB_SI_COULEUR(S10:Y15,[1]!NO_COULEUR($A$56))","v":{"$error":"#NAME?"}},"RH :",{"$f":"[1]!NB_SI_COULEUR(S10:Y15,[1]!NO_COULEUR($A$58))","v":{"$error":"#NAME?"}},null,"RTT :",{"$f":"[1]!NB_SI_COULEUR(S10:Y15,[1]!NO_COULEUR($A$60))","v":{"$error":"#NAME?"}}]
["JF :",{"$f":"IF([1]!NB_SI_COULEUR(A10:G15,[1]!NO_COULEUR($A$62))>3,0,[1]!NB_SI_COULEUR(A10:G15,[1]!NO_COULEUR($A$62)))","v":{"$error":"#NAME?"}},"CP :",{"$f":"[1]!NB_SI_COULEUR(A10:G15,[1]!NO_COULEUR($A$64))","v":{"$error":"#NAME?"}},null,"Abs :",{"$f":"[1]!NB_SI_COULEUR(A10:G15,[1]!NO_COULEUR($A$66))","v":{"$error":"#NAME?"}},null,null,"JF :",{"$f":"IF([1]!NB_SI_COULEUR(J10:P15,[1]!NO_COULEUR($A$62))>3,0,[1]!NB_SI_COULEUR(J10:P15,[1]!NO_COULEUR($A$62)))","v":{"$error":"#NAME?"}},"CP :",{"$f":"[1]!NB_SI_COULEUR(J10:P15,[1]!NO_COULEUR($A$64))","v":{"$error":"#NAME?"}},null,"Abs :",{"$f":"[1]!NB_SI_COULEUR(J10:P15,[1]!NO_COULEUR($A$66))","v":{"$error":"#NAME?"}},null,null,"JF :",{"$f":"IF([1]!NB_SI_COULEUR(S10:Y15,[1]!NO_COULEUR($A$62))>3,0,[1]!NB_SI_COULEUR(S10:Y15,[1]!NO_COULEUR($A$62)))","v":{"$error":"#NAME?"}},"CP :",{"$f":"[1]!NB_SI_COULEUR(S10:Y15,[1]!NO_COULEUR($A$64))","v":{"$error":"#NAME?"}},null,"Abs :",{"$f":"[1]!NB_SI_COULEUR(S10:Y15,[1]!NO_COULEUR($A$66))","v":{"$error":"#NAME?"}}]
[]
[{"$f":"DATE(YEAR(S8+35),MONTH(S8+35),1)","v":"2022-08-01"},null,null,null,null,null,null,null,null,{"$f":"DATE(YEAR(A19+35),MONTH(A19+35),1)","v":"2022-09-01"},null,null,null,null,null,null,null,null,{"$f":"DATE(YEAR(J19+35),MONTH(J19+35),1)","v":"2022-10-01"}]
[{"$f":"$A$9","v":"Lu"},{"$f":"$B$9","v":"Ma"},{"$f":"$C$9","v":"Me"},{"$f":"$D$9","v":"Je"},{"$f":"$E$9","v":"Ve"},{"$f":"$F$9","v":"Sa"},{"$f":"$G$9","v":"Di"},null,null,{"$f":"$A$9","v":"Lu"},{"$f":"$B$9","v":"Ma"},{"$f":"$C$9","v":"Me"},{"$f":"$D$9","v":"Je"},{"$f":"$E$9","v":"Ve"},{"$f":"$F$9","v":"Sa"},{"$f":"$G$9","v":"Di"},null,null,{"$f":"$A$9","v":"Lu"},{"$f":"$B$9","v":"Ma"},{"$f":"$C$9","v":"Me"},{"$f":"$D$9","v":"Je"},{"$f":"$E$9","v":"Ve"},{"$f":"$F$9","v":"Sa"},{"$f":"$G$9","v":"Di"}]
[{"$f":"IF(MONTH($A$19)<>MONTH($A$19-WEEKDAY($A$19,2)+(ROW(A21)-ROW($A$21))*7+(COLUMN(A21)-COLUMN($A$21)+1)),\"\",$A$19-WEEKDAY($A$19,2)+(ROW(A21)-ROW($A$21))*7+(COLUMN(A21)-COLUMN($A$21)+1))","v":"2022-08-01"},{"$f":"IF(MONTH($A$19)<>MONTH($A$19-WEEKDAY($A$19,2)+(ROW(B21)-ROW($A$21))*7+(COLUMN(B21)-COLUMN($A$21)+1)),\"\",$A$19-WEEKDAY($A$19,2)+(ROW(B21)-ROW($A$21))*7+(COLUMN(B21)-COLUMN($A$21)+1))","v":"2022-08-02"},"2022-08-03","2022-08-04","2022-08-05","2022-08-06","2022-08-07",null,null,{"$f":"IF(MONTH($J$19)<>MONTH($J$19-WEEKDAY($J$19,2)+(ROW(J21)-ROW($J$21))*7+(COLUMN(J21)-COLUMN($J$21)+1)),\"\",$J$19-WEEKDAY($J$19,2)+(ROW(J21)-ROW($J$21))*7+(COLUMN(J21)-COLUMN($J$21)+1))","v":""},{"$f":"IF(MONTH($J$19)<>MONTH($J$19-WEEKDAY($J$19,2)+(ROW(K21)-ROW($J$21))*7+(COLUMN(K21)-COLUMN($J$21)+1)),\"\",$J$19-WEEKDAY($J$19,2)+(ROW(K21)-ROW($J$21))*7+(COLUMN(K21)-COLUMN($J$21)+1))","v":""},"","2022-09-01","2022-09-02","2022-09-03","2022-09-04",null,null,{"$f":"IF(MONTH($S$19)<>MONTH($S$19-WEEKDAY($S$19,2)+(ROW(S21)-ROW($S$21))*7+(COLUMN(S21)-COLUMN($S$21)+1)),\"\",$S$19-WEEKDAY($S$19,2)+(ROW(S21)-ROW($S$21))*7+(COLUMN(S21)-COLUMN($S$21)+1))","v":""},{"$f":"IF(MONTH($S$19)<>MONTH($S$19-WEEKDAY($S$19,2)+(ROW(T21)-ROW($S$21))*7+(COLUMN(T21)-COLUMN($S$21)+1)),\"\",$S$19-WEEKDAY($S$19,2)+(ROW(T21)-ROW($S$21))*7+(COLUMN(T21)-COLUMN($S$21)+1))","v":""},"","","","2022-10-01","2022-10-02"]
[{"$f":"IF(MONTH($A$19)<>MONTH($A$19-WEEKDAY($A$19,2)+(ROW(A22)-ROW($A$21))*7+(COLUMN(A22)-COLUMN($A$21)+1)),\"\",$A$19-WEEKDAY($A$19,2)+(ROW(A22)-ROW($A$21))*7+(COLUMN(A22)-COLUMN($A$21)+1))","v":"2022-08-08"},"2022-08-09","2022-08-10","2022-08-11","2022-08-12","2022-08-13","2022-08-14",null,null,{"$f":"IF(MONTH($J$19)<>MONTH($J$19-WEEKDAY($J$19,2)+(ROW(J22)-ROW($J$21))*7+(COLUMN(J22)-COLUMN($J$21)+1)),\"\",$J$19-WEEKDAY($J$19,2)+(ROW(J22)-ROW($J$21))*7+(COLUMN(J22)-COLUMN($J$21)+1))","v":"2022-09-05"},"2022-09-06","2022-09-07","2022-09-08","2022-09-09","2022-09-10","2022-09-11",null,null,{"$f":"IF(MONTH($S$19)<>MONTH($S$19-WEEKDAY($S$19,2)+(ROW(S22)-ROW($S$21))*7+(COLUMN(S22)-COLUMN($S$21)+1)),\"\",$S$19-WEEKDAY($S$19,2)+(ROW(S22)-ROW($S$21))*7+(COLUMN(S22)-COLUMN($S$21)+1))","v":"2022-10-03"},"2022-10-04","2022-10-05","2022-10-06","2022-10-07","2022-10-08","2022-10-09"]
["2022-08-15","2022-08-16","2022-08-17","2022-08-18","2022-08-19","2022-08-20","2022-08-21",null,null,"2022-09-12","2022-09-13","2022-09-14","2022-09-15","2022-09-16","2022-09-17","2022-09-18",null,null,"2022-10-10","2022-10-11","2022-10-12","2022-10-13","2022-10-14","2022-10-15","2022-10-16"]
["2022-08-22","2022-08-23","2022-08-24","2022-08-25","2022-08-26","2022-08-27","2022-08-28",null,null,"2022-09-19","2022-09-20","2022-09-21","2022-09-22","2022-09-23","2022-09-24","2022-09-25",null,null,"2022-10-17","2022-10-18","2022-10-19","2022-10-20","2022-10-21","2022-10-22","2022-10-23"]
["2022-08-29","2022-08-30","2022-08-31","","","","",null,null,"2022-09-26","2022-09-27","2022-09-28","2022-09-29","2022-09-30","","",null,null,"2022-10-24","2022-10-25","2022-10-26","2022-10-27","2022-10-28","2022-10-29","2022-10-30"]
["","","","","","","",null,null,"","","","","","","",null,null,"2022-10-31","","","","","",""]
["JT :",{"$f":"[1]!NB_SI_COULEUR(A21:G26,[1]!NO_COULEUR($A$56))","v":{"$error":"#NAME?"}},"RH :",{"$f":"[1]!NB_SI_COULEUR(A21:G26,[1]!NO_COULEUR($A$58))","v":{"$error":"#NAME?"}},null,"RTT :",{"$f":"[1]!NB_SI_COULEUR(A21:G26,[1]!NO_COULEUR($A$60))","v":{"$error":"#NAME?"}},null,null,"JT :",{"$f":"[1]!NB_SI_COULEUR(J21:P26,[1]!NO_COULEUR($A$56))","v":{"$error":"#NAME?"}},"RH :",{"$f":"[1]!NB_SI_COULEUR(J21:P26,[1]!NO_COULEUR($A$58))","v":{"$error":"#NAME?"}},null,"RTT :",{"$f":"[1]!NB_SI_COULEUR(J21:P26,[1]!NO_COULEUR($A$60))","v":{"$error":"#NAME?"}},null,null,"JT :",{"$f":"[1]!NB_SI_COULEUR(S21:Y26,[1]!NO_COULEUR($A$56))","v":{"$error":"#NAME?"}},"RH :",{"$f":"[1]!NB_SI_COULEUR(S21:Y26,[1]!NO_COULEUR($A$58))","v":{"$error":"#NAME?"}},null,"RTT :",{"$f":"[1]!NB_SI_COULEUR(S21:Y26,[1]!NO_COULEUR($A$60))","v":{"$error":"#NAME?"}}]
["JF :",{"$f":"IF([1]!NB_SI_COULEUR(A21:G26,[1]!NO_COULEUR($A$62))>3,0,[1]!NB_SI_COULEUR(A21:G26,[1]!NO_COULEUR($A$62)))","v":{"$error":"#NAME?"}},"CP :",{"$f":"[1]!NB_SI_COULEUR(A21:G26,[1]!NO_COULEUR($A$64))","v":{"$error":"#NAME?"}},null,"Abs :",{"$f":"[1]!NB_SI_COULEUR(A21:G26,[1]!NO_COULEUR($A$66))","v":{"$error":"#NAME?"}},null,null,"JF :",{"$f":"IF([1]!NB_SI_COULEUR(J21:P26,[1]!NO_COULEUR($A$62))>3,0,[1]!NB_SI_COULEUR(J21:P26,[1]!NO_COULEUR($A$62)))","v":{"$error":"#NAME?"}},"CP :",{"$f":"[1]!NB_SI_COULEUR(J21:P26,[1]!NO_COULEUR($A$64))","v":{"$error":"#NAME?"}},null,"Abs :",{"$f":"[1]!NB_SI_COULEUR(J21:P26,[1]!NO_COULEUR($A$66))","v":{"$error":"#NAME?"}},null,null,"JF :",{"$f":"IF([1]!NB_SI_COULEUR(S21:Y26,[1]!NO_COULEUR($A$62))>3,0,[1]!NB_SI_COULEUR(S21:Y26,[1]!NO_COULEUR($A$62)))","v":{"$error":"#NAME?"}},"CP :",{"$f":"[1]!NB_SI_COULEUR(S21:Y26,[1]!NO_COULEUR($A$64))","v":{"$error":"#NAME?"}},null,"Abs :",{"$f":"[1]!NB_SI_COULEUR(S21:Y26,[1]!NO_COULEUR($A$66))","v":{"$error":"#NAME?"}},null,null,null,null,","]
[]
[{"$f":"DATE(YEAR(S19+35),MONTH(S19+35),1)","v":"2022-11-01"},null,null,null,null,null,null,null,null,{"$f":"DATE(YEAR(A30+35),MONTH(A30+35),1)","v":"2022-12-01"},null,null,null,null,null,null,null,null,{"$f":"DATE(YEAR(J30+35),MONTH(J30+35),1)","v":"2023-01-01"}]
[{"$f":"$A$9","v":"Lu"},{"$f":"$B$9","v":"Ma"},{"$f":"$C$9","v":"Me"},{"$f":"$D$9","v":"Je"},{"$f":"$E$9","v":"Ve"},{"$f":"$F$9","v":"Sa"},{"$f":"$G$9","v":"Di"},null,null,{"$f":"$A$9","v":"Lu"},{"$f":"$B$9","v":"Ma"},{"$f":"$C$9","v":"Me"},{"$f":"$D$9","v":"Je"},{"$f":"$E$9","v":"Ve"},{"$f":"$F$9","v":"Sa"},{"$f":"$G$9","v":"Di"},null,null,{"$f":"$A$9","v":"Lu"},{"$f":"$B$9","v":"Ma"},{"$f":"$C$9","v":"Me"},{"$f":"$D$9","v":"Je"},{"$f":"$E$9","v":"Ve"},{"$f":"$F$9","v":"Sa"},{"$f":"$G$9","v":"Di"}]
[{"$f":"IF(MONTH($A$30)<>MONTH($A$30-WEEKDAY($A$30,2)+(ROW(A32)-ROW($A$32))*7+(COLUMN(A32)-COLUMN($A$32)+1)),\"\",$A$30-WEEKDAY($A$30,2)+(ROW(A32)-ROW($A$32))*7+(COLUMN(A32)-COLUMN($A$32)+1))","v":""},{"$f":"IF(MONTH($A$30)<>MONTH($A$30-WEEKDAY($A$30,2)+(ROW(B32)-ROW($A$32))*7+(COLUMN(B32)-COLUMN($A$32)+1)),\"\",$A$30-WEEKDAY($A$30,2)+(ROW(B32)-ROW($A$32))*7+(COLUMN(B32)-COLUMN($A$32)+1))","v":"2022-11-01"},"2022-11-02","2022-11-03","2022-11-04","2022-11-05","2022-11-06",null,null,{"$f":"IF(MONTH($J$30)<>MONTH($J$30-WEEKDAY($J$30,2)+(ROW(J32)-ROW($J$32))*7+(COLUMN(J32)-COLUMN($J$32)+1)),\"\",$J$30-WEEKDAY($J$30,2)+(ROW(J32)-ROW($J$32))*7+(COLUMN(J32)-COLUMN($J$32)+1))","v":""},{"$f":"IF(MONTH($J$30)<>MONTH($J$30-WEEKDAY($J$30,2)+(ROW(K32)-ROW($J$32))*7+(COLUMN(K32)-COLUMN($J$32)+1)),\"\",$J$30-WEEKDAY($J$30,2)+(ROW(K32)-ROW($J$32))*7+(COLUMN(K32)-COLUMN($J$32)+1))","v":""},"","2022-12-01","2022-12-02","2022-12-03","2022-12-04",null,null,{"$f":"IF(MONTH($S$30)<>MONTH($S$30-WEEKDAY($S$30,2)+(ROW(S32)-ROW($S$32))*7+(COLUMN(S32)-COLUMN($S$32)+1)),\"\",$S$30-WEEKDAY($S$30,2)+(ROW(S32)-ROW($S$32))*7+(COLUMN(S32)-COLUMN($S$32)+1))","v":""},{"$f":"IF(MONTH($S$30)<>MONTH($S$30-WEEKDAY($S$30,2)+(ROW(T32)-ROW($S$32))*7+(COLUMN(T32)-COLUMN($S$32)+1)),\"\",$S$30-WEEKDAY($S$30,2)+(ROW(T32)-ROW($S$32))*7+(COLUMN(T32)-COLUMN($S$32)+1))","v":""},"","","","","2023-01-01"]
[{"$f":"IF(MONTH($A$30)<>MONTH($A$30-WEEKDAY($A$30,2)+(ROW(A33)-ROW($A$32))*7+(COLUMN(A33)-COLUMN($A$32)+1)),\"\",$A$30-WEEKDAY($A$30,2)+(ROW(A33)-ROW($A$32))*7+(COLUMN(A33)-COLUMN($A$32)+1))","v":"2022-11-07"},"2022-11-08","2022-11-09","2022-11-10","2022-11-11","2022-11-12","2022-11-13",null,null,{"$f":"IF(MONTH($J$30)<>MONTH($J$30-WEEKDAY($J$30,2)+(ROW(J33)-ROW($J$32))*7+(COLUMN(J33)-COLUMN($J$32)+1)),\"\",$J$30-WEEKDAY($J$30,2)+(ROW(J33)-ROW($J$32))*7+(COLUMN(J33)-COLUMN($J$32)+1))","v":"2022-12-05"},"2022-12-06","2022-12-07","2022-12-08","2022-12-09","2022-12-10","2022-12-11",null,null,{"$f":"IF(MONTH($S$30)<>MONTH($S$30-WEEKDAY($S$30,2)+(ROW(S33)-ROW($S$32))*7+(COLUMN(S33)-COLUMN($S$32)+1)),\"\",$S$30-WEEKDAY($S$30,2)+(ROW(S33)-ROW($S$32))*7+(COLUMN(S33)-COLUMN($S$32)+1))","v":"2023-01-02"},"2023-01-03","2023-01-04","2023-01-05","2023-01-06","2023-01-07","2023-01-08"]
["2022-11-14","2022-11-15","2022-11-16","2022-11-17","2022-11-18","2022-11-19","2022-11-20",null,null,"2022-12-12","2022-12-13","2022-12-14"," ","2022-12-16","2022-12-17","2022-12-18",null,null,"2023-01-09","2023-01-10","2023-01-11","2023-01-12","2023-01-13","2023-01-14","2023-01-15"]
["2022-11-21","2022-11-22","2022-11-23","2022-11-24","2022-11-25","2022-11-26","2022-11-27",null,null,"2022-12-19","2022-12-20","2022-12-21","2022-12-22","2022-12-23","2022-12-24","2022-12-25",null,null,"2023-01-16","2023-01-17","2023-01-18","2023-01-19","2023-01-20","2023-01-21","2023-01-22"]
["2022-11-28","2022-11-29","2022-11-30","","","","",null,null,"2022-12-26","2022-12-27","2022-12-28","2022-12-29","2022-12-30","2022-12-31","",null,null,"2023-01-23","2023-01-24","2023-01-25","2023-01-26","2023-01-27","2023-01-28","2023-01-29"]
["","","","","","","",null,null,"","","","","","","",null,null,"2023-01-30","2023-01-31","","","","",""]
["JT :",{"$f":"[1]!NB_SI_COULEUR(A32:G37,[1]!NO_COULEUR($A$56))","v":{"$error":"#NAME?"}},"RH :",{"$f":"[1]!NB_SI_COULEUR(A32:G37,[1]!NO_COULEUR($A$58))","v":{"$error":"#NAME?"}},null,"RTT :",{"$f":"[1]!NB_SI_COULEUR(A32:G37,[1]!NO_COULEUR($A$60))","v":{"$error":"#NAME?"}},null,null,"JT :",{"$f":"[1]!NB_SI_COULEUR(J32:P37,[1]!NO_COULEUR($A$56))","v":{"$error":"#NAME?"}},"RH :",{"$f":"[1]!NB_SI_COULEUR(J32:P37,[1]!NO_COULEUR($A$58))","v":{"$error":"#NAME?"}},null,"RTT :",{"$f":"[1]!NB_SI_COULEUR(J32:P37,[1]!NO_COULEUR($A$60))","v":{"$error":"#NAME?"}},null,null,"JT :",{"$f":"[1]!NB_SI_COULEUR(S32:Y37,[1]!NO_COULEUR($A$56))","v":{"$error":"#NAME?"}},"RH :",{"$f":"[1]!NB_SI_COULEUR(S32:Y37,[1]!NO_COULEUR($A$58))","v":{"$error":"#NAME?"}},null,"RTT :",{"$f":"[1]!NB_SI_COULEUR(S32:Y37,[1]!NO_COULEUR($A$60))","v":{"$error":"#NAME?"}}]
["JF :",{"$f":"[1]!NB_SI_COULEUR(A32:G37,[1]!NO_COULEUR($A$62))","v":{"$error":"#NAME?"}},"CP :",{"$f":"[1]!NB_SI_COULEUR(A32:G37,[1]!NO_COULEUR($A$64))","v":{"$error":"#NAME?"}},null,"Abs :",{"$f":"[1]!NB_SI_COULEUR(A32:G37,[1]!NO_COULEUR($A$66))","v":{"$error":"#NAME?"}},null,null,"JF :",{"$f":"[1]!NB_SI_COULEUR(J32:P37,[1]!NO_COULEUR($A$62))","v":{"$error":"#NAME?"}},"CP :",{"$f":"[1]!NB_SI_COULEUR(J32:P37,[1]!NO_COULEUR($A$64))","v":{"$error":"#NAME?"}},null,"Abs :",{"$f":"[1]!NB_SI_COULEUR(J32:P37,[1]!NO_COULEUR($A$66))","v":{"$error":"#NAME?"}},null,null,"JF :",{"$f":"[1]!NB_SI_COULEUR(S32:Y37,[1]!NO_COULEUR($A$62))","v":{"$error":"#NAME?"}},"CP :",{"$f":"[1]!NB_SI_COULEUR(S32:Y37,[1]!NO_COULEUR($A$64))","v":{"$error":"#NAME?"}},null,"Abs :",{"$f":"[1]!NB_SI_COULEUR(S32:Y37,[1]!NO_COULEUR($A$66))","v":{"$error":"#NAME?"}}]
[]
[{"$f":"DATE(YEAR(S30+35),MONTH(S30+35),1)","v":"2023-02-01"},null,null,null,null,null,null,null,null,{"$f":"DATE(YEAR(A41+35),MONTH(A41+35),1)","v":"2023-03-01"},null,null,null,null,null,null,null,null,{"$f":"DATE(YEAR(J41+35),MONTH(J41+35),1)","v":"2023-04-01"}]
[{"$f":"$A$9","v":"Lu"},{"$f":"$B$9","v":"Ma"},{"$f":"$C$9","v":"Me"},{"$f":"$D$9","v":"Je"},{"$f":"$E$9","v":"Ve"},{"$f":"$F$9","v":"Sa"},{"$f":"$G$9","v":"Di"},null,null,{"$f":"$A$9","v":"Lu"},{"$f":"$B$9","v":"Ma"},{"$f":"$C$9","v":"Me"},{"$f":"$D$9","v":"Je"},{"$f":"$E$9","v":"Ve"},{"$f":"$F$9","v":"Sa"},{"$f":"$G$9","v":"Di"},null,null,{"$f":"$A$9","v":"Lu"},{"$f":"$B$9","v":"Ma"},{"$f":"$C$9","v":"Me"},{"$f":"$D$9","v":"Je"},{"$f":"$E$9","v":"Ve"},{"$f":"$F$9","v":"Sa"},{"$f":"$G$9","v":"Di"}]
[{"$f":"IF(MONTH($A$41)<>MONTH($A$41-WEEKDAY($A$41,2)+(ROW(A43)-ROW($A$43))*7+(COLUMN(A43)-COLUMN($A$43)+1)),\"\",$A$41-WEEKDAY($A$41,2)+(ROW(A43)-ROW($A$43))*7+(COLUMN(A43)-COLUMN($A$43)+1))","v":""},{"$f":"IF(MONTH($A$41)<>MONTH($A$41-WEEKDAY($A$41,2)+(ROW(B43)-ROW($A$43))*7+(COLUMN(B43)-COLUMN($A$43)+1)),\"\",$A$41-WEEKDAY($A$41,2)+(ROW(B43)-ROW($A$43))*7+(COLUMN(B43)-COLUMN($A$43)+1))","v":""},"2023-02-01","2023-02-02","2023-02-03","2023-02-04","2023-02-05",null,null,{"$f":"IF(MONTH($J$41)<>MONTH($J$41-WEEKDAY($J$41,2)+(ROW(J43)-ROW($J$43))*7+(COLUMN(J43)-COLUMN($J$43)+1)),\"\",$J$41-WEEKDAY($J$41,2)+(ROW(J43)-ROW($J$43))*7+(COLUMN(J43)-COLUMN($J$43)+1))","v":""},{"$f":"IF(MONTH($J$41)<>MONTH($J$41-WEEKDAY($J$41,2)+(ROW(K43)-ROW($J$43))*7+(COLUMN(K43)-COLUMN($J$43)+1)),\"\",$J$41-WEEKDAY($J$41,2)+(ROW(K43)-ROW($J$43))*7+(COLUMN(K43)-COLUMN($J$43)+1))","v":""},"2023-03-01","2023-03-02","2023-03-03","2023-03-04","2023-03-05",null,null,{"$f":"IF(MONTH($S$41)<>MONTH($S$41-WEEKDAY($S$41,2)+(ROW(S43)-ROW($S$43))*7+(COLUMN(S43)-COLUMN($S$43)+1)),\"\",$S$41-WEEKDAY($S$41,2)+(ROW(S43)-ROW($S$43))*7+(COLUMN(S43)-COLUMN($S$43)+1))","v":""},{"$f":"IF(MONTH($S$41)<>MONTH($S$41-WEEKDAY($S$41,2)+(ROW(T43)-ROW($S$43))*7+(COLUMN(T43)-COLUMN($S$43)+1)),\"\",$S$41-WEEKDAY($S$41,2)+(ROW(T43)-ROW($S$43))*7+(COLUMN(T43)-COLUMN($S$43)+1))","v":""},"","","","2023-04-01","2023-04-02"]
[{"$f":"IF(MONTH($A$41)<>MONTH($A$41-WEEKDAY($A$41,2)+(ROW(A44)-ROW($A$43))*7+(COLUMN(A44)-COLUMN($A$43)+1)),\"\",$A$41-WEEKDAY($A$41,2)+(ROW(A44)-ROW($A$43))*7+(COLUMN(A44)-COLUMN($A$43)+1))","v":"2023-02-06"},"2023-02-07","2023-02-08","2023-02-09","2023-02-10","2023-02-11","2023-02-12",null,null,{"$f":"IF(MONTH($J$41)<>MONTH($J$41-WEEKDAY($J$41,2)+(ROW(J44)-ROW($J$43))*7+(COLUMN(J44)-COLUMN($J$43)+1)),\"\",$J$41-WEEKDAY($J$41,2)+(ROW(J44)-ROW($J$43))*7+(COLUMN(J44)-COLUMN($J$43)+1))","v":"2023-03-06"},"2023-03-07","2023-03-08","2023-03-09","2023-03-10","2023-03-11","2023-03-12",null,null,{"$f":"IF(MONTH($S$41)<>MONTH($S$41-WEEKDAY($S$41,2)+(ROW(S44)-ROW($S$43))*7+(COLUMN(S44)-COLUMN($S$43)+1)),\"\",$S$41-WEEKDAY($S$41,2)+(ROW(S44)-ROW($S$43))*7+(COLUMN(S44)-COLUMN($S$43)+1))","v":"2023-04-03"},"2023-04-04","2023-04-05","2023-04-06","2023-04-07","2023-04-08","2023-04-09"]
["2023-02-13","2023-02-14","2023-02-15","2023-02-16","2023-02-17","2023-02-18","2023-02-19",null,null,"2023-03-13","2023-03-14","2023-03-15","2023-03-16","2023-03-17","2023-03-18","2023-03-19",null,null,"2023-04-10","2023-04-11","2023-04-12","2023-04-13","2023-04-14","2023-04-15","2023-04-16"]
["2023-02-20","2023-02-21","2023-02-22","2023-02-23","2023-02-24","2023-02-25","2023-02-26",null,null,"2023-03-20","2023-03-21","2023-03-22","2023-03-23","2023-03-24","2023-03-25","2023-03-26",null,null,"2023-04-17","2023-04-18","2023-04-19","2023-04-20","2023-04-21","2023-04-22","2023-04-23",null,null,null,null,null,null,null,null,null,null,null,null,null,null,null,null,null,null,null,{"$f":"N(WEEKDAY(ROW(INDIRECT($A$8&\":\"&EOMONTH($S$41,0))),2)=7)","v":1}]
["2023-02-27","2023-02-28","","","","","",null,null,"2023-03-27","2023-03-28","2023-03-29","2023-03-30","2023-03-31","","",null,null,"2023-04-24","2023-04-25","2023-04-26","2023-04-27","2023-04-28","2023-04-29","2023-04-30",null,null,null,null,null,null,null,null,null,null,null,null,null,null,null,null,null,null,null,0]
["","","","","","","",null,null,"","","","","","","",null,null,"","","","","","","",null,null,null,null,null,null,null,null,null,null,null,null,null,null,null,null,null,null,null,0]
["JT :",{"$f":"[1]!NB_SI_COULEUR(A43:G48,[1]!NO_COULEUR($A$56))","v":{"$error":"#NAME?"}},"RH :",{"$f":"[1]!NB_SI_COULEUR(A43:G48,[1]!NO_COULEUR($A$58))","v":{"$error":"#NAME?"}},null,"RTT :",{"$f":"[1]!NB_SI_COULEUR(A43:G48,[1]!NO_COULEUR($A$60))","v":{"$error":"#NAME?"}},null,null,"JT :",{"$f":"[1]!NB_SI_COULEUR(J43:P48,[1]!NO_COULEUR($A$56))","v":{"$error":"#NAME?"}},"RH :",{"$f":"[1]!NB_SI_COULEUR(J43:P48,[1]!NO_COULEUR($A$58))","v":{"$error":"#NAME?"}},null,"RTT :",{"$f":"[1]!NB_SI_COULEUR(J43:P48,[1]!NO_COULEUR($A$60))","v":{"$error":"#NAME?"}},null,null,"JT :",{"$f":"[1]!NB_SI_COULEUR(S43:Y48,[1]!NO_COULEUR($A$56))","v":{"$error":"#NAME?"}},"RH :",{"$f":"[1]!NB_SI_COULEUR(S43:Y48,[1]!NO_COULEUR($A$58))","v":{"$error":"#NAME?"}},null,"RTT :",{"$f":"[1]!NB_SI_COULEUR(S43:Y48,[1]!NO_COULEUR($A$60))","v":{"$error":"#NAME?"}},null,null,null,null,null,null,null,null,null,null,null,null,null,null,null,null,null,null,null,0]
["JF :",{"$f":"[1]!NB_SI_COULEUR(A43:G48,[1]!NO_COULEUR($A$62))","v":{"$error":"#NAME?"}},"CP :",{"$f":"[1]!NB_SI_COULEUR(A43:G48,[1]!NO_COULEUR($A$64))","v":{"$error":"#NAME?"}},null,"Abs :",{"$f":"[1]!NB_SI_COULEUR(A43:G48,[1]!NO_COULEUR($A$66))","v":{"$error":"#NAME?"}},null,null,"JF :",{"$f":"[1]!NB_SI_COULEUR(J43:P48,[1]!NO_COULEUR($A$62))","v":{"$error":"#NAME?"}},"CP :",{"$f":"[1]!NB_SI_COULEUR(J43:P48,[1]!NO_COULEUR($A$64))","v":{"$error":"#NAME?"}},null,"Abs :",{"$f":"[1]!NB_SI_COULEUR(J43:P48,[1]!NO_COULEUR($A$66))","v":{"$error":"#NAME?"}},null,null,"JF :",{"$f":"[1]!NB_SI_COULEUR(S43:Y48,[1]!NO_COULEUR($A$62))","v":{"$error":"#NAME?"}},"CP :",{"$f":"[1]!NB_SI_COULEUR(S43:Y48,[1]!NO_COULEUR($A$64))","v":{"$error":"#NAME?"}},null,"Abs :",{"$f":"[1]!NB_SI_COULEUR(S43:Y48,[1]!NO_COULEUR($A$66))","v":{"$error":"#NAME?"}},null,null,null,null,null,null,null,null,null,null,null,null,null,null,null,null,null,null,null,0]
[null,null,null,null,null,null,null,null,null,null,null,null,null,null,null,null,null,null,null,null,null,null,null,null,null,null,null,null,null,null,null,null,null,null,null,null,null,null,null,null,null,null,null,null,0]
["Nbre jours Excercice",null,null,null,null,null,{"$f":"EOMONTH($S$41,0)-$A$8+1","v":365},null,null,null,null,null,null,null,null,null,null,null,null,null,null,null,null,null,null,null,null,null,null,null,null,null,null,null,null,null,null,null,null,null,null,null,null,null,0]
["Nbre semaines entières",null,null,null,null,null,{"$f":"SUMPRODUCT(N(WEEKDAY(ROW(INDIRECT($A$8&\":\"&EOMONTH($S$41,0)-6)),2)=1))","v":52},null,null,null,null,null,null,null,null,null,null,null,null,null,null,null,null,null,null,null,null,null,null,null,null,null,null,null,null,null,null,null,null,null,null,null,null,null,1]
["Nbre Dimanches",null,null,null,null,null,{"$f":"SUMPRODUCT(N(WEEKDAY(ROW(INDIRECT($A$8&\":\"&EOMONTH($S$41,0))),2)=7))","v":53},null,"Posé / Pris",null,null,null,null,null,"Restant",null,null,null,null,null,"Total annuel",null,null,null,null,null,null,null,null,null,null,null,null,null,null,null,null,null,null,{"$f":"[1]!NO_COULEUR(AM54)","v":{"$error":"#NAME?"}},null,null,null,null,0]
[null,null,null,null,null,null,null,null,null,null,null,null,null,null,null,null,null,null,null,null,null,null,null,null,null,null,null,null,null,null,null,null,null,null,null,null,null,null,null,null,null,null,null,null,0]
[null,null,"Jours Travaillés",null,null,null,null,":",null,{"$f":"[1]!NB_SI_COULEUR($A$7:$Y$50,[1]!NO_COULEUR(A56))","v":{"$error":"#NAME?"}},null,null,null,null,null,{"$f":"V56-J56","v":{"$error":"#NAME?"}},null,null,null,null,null,218,null,null,null,null,null,null,null,null,null,null,null,null,null,null,null,null,null,{"$f":"[1]!NO_COULEUR(AM56)","v":{"$error":"#NAME?"}},null,null,null,null,0]
[null,null,null,null,null,null,null,null,null,null,null,null,null,null,null,null,null,null,null,null,null,null,null,null,null,null,null,null,null,null,null,null,null,null,null,null,null,null,null,null,null,null,null,null,0]
[null,null,"Repos Hebdo.",null,null,null,null,":",null,{"$f":"[1]!NB_SI_COULEUR($A$7:$Y$50,[1]!NO_COULEUR(A58))","v":{"$error":"#NAME?"}},null,null,null,null,null,{"$f":"V58-J58","v":{"$error":"#NAME?"}},null,null,null,null,null,{"$f":"$X$4*2","v":106},null,null,null,null,null,null,null,null,null,null,null,null,null,null,null,null,null,{"$f":"[1]!NO_COULEUR(AM58)","v":{"$error":"#NAME?"}},null,null,null,null,0]
[null,null,null,null,null,null,null,null,null,null,null,null,null,null,null,null,null,null,null,null,null,null,null,null,null,null,null,null,null,null,null,null,null,null,null,null,null,null,null,null,null,null,null,null,0]
[null,null,"R.T.T.",null,null,null,null,":",null,{"$f":"[1]!NB_SI_COULEUR($A$7:$Y$50,[1]!NO_COULEUR(A60))","v":{"$error":"#NAME?"}},null,null,null,null,null,{"$f":"V60-J60","v":{"$error":"#NAME?"}},null,null,null,null,null,{"$f":"X2-V56-V58-V62-V64","v":0},null,null,null,null,null,null,null,null,null,null,null,null,null,null,null,null,null,{"$f":"[1]!NO_COULEUR(AM60)","v":{"$error":"#NAME?"}},null,null,null,null,1]
[null,null,null,null,null,null,null,null,null,null,null,null,null,null,null,null,null,null,null,null,null,null,null,null,null,null,null,null,null,null,null,null,null,null,null,null,null,null,null,null,null,null,null,null,0]
[1,null,"Jours Fériés",null,null,null,null,":",null,null,null,null,null,null,null,{"$f":"V62-J62","v":11},null,null,null,null,null,{"$f":"SUMPRODUCT(($I$70:$O$80>=$A$8)*($I$70:$O$80<=EOMONTH($S$41,0)))+SUMPRODUCT(($Q$70:$W$80>=$A$8)*($Q$70:$W$80<=EOMONTH($S$41,0)))","v":11},null,null,null,null,null,null,null,null,null,null,null,null,null,null,null,null,null,{"$f":"[1]!NO_COULEUR(AM62)","v":{"$error":"#NAME?"}},null,null,null,null,0]
[null,null,null,null,null,null,null,null,null,null,null,null,null,null,null,null,null,null,null,null,null,null,null,null,null,null,null,null,null,null,null,null,null,null,null,null,null,null,null,null,null,null,null,null,0]
[null,null,"Congés Payés",null,null,null,null,":",null,{"$f":"[1]!NB_SI_COULEUR($A$7:$Y$50,[1]!NO_COULEUR(A64))","v":{"$error":"#NAME?"}},null,null,null,null,null,{"$f":"V64-J64","v":{"$error":"#NAME?"}},null,null,null,null,null,30,null,null,null,null,null,null,null,null,null,null,null,null,null,null,null,null,null,{"$f":"[1]!NO_COULEUR(AM64)","v":{"$error":"#NAME?"}},null,null,null,null,0]
[null,null,null,null,null,null,null,null,null,null,null,null,null,null,null,null,null,null,null,null,null,null,null,null,null,null,null,null,null,null,null,null,null,null,null,null,null,null,null,null,null,null,null,null,0]
[null,null,"Abs. Exceptionelle",null,null,null,null,":",null,{"$f":"[1]!NB_SI_COULEUR($A$7:$Y$50,[1]!NO_COULEUR(A66))","v":{"$error":"#NAME?"}},null,null,null,null,null,null,null,null,null,null,null,{"$f":"J66","v":{"$error":"#NAME?"}},null,null,null,null,null,null,null,null,null,null,null,null,null,null,null,null,null,{"$f":"[1]!NO_COULEUR(AM66)","v":{"$error":"#NAME?"}},null,null,null,null,0]
[null,null,null,null,null,null,null,null,null,null,null,null,null,null,null,null,null,null,null,null,null,null,null,null,null,null,null,null,null,null,null,null,null,null,null,null,null,null,null,null,null,null,null,null,1]
[null,null,null,null,null,null,null,null,null,null,"Pâques",null,null,null,null,null,null,null,{"$f":"IF($E$3=1,\"\",\"Pâques\")","v":"Pâques"},null,null,null,null,null,null,null,null,null,null,null,null,null,null,null,null,null,null,null,null,null,null,null,null,null,0]
["JOURS FERIÉS",null,null,null,null,null,null,null,{"$f":"$A$3","v":2022},null,{"$f":"ROUND(DATE($A$3,4,MOD(234-11*MOD($A$3,19),30))/7,)*7-6","v":"2022-04-17"},null,null,null,null,null,{"$f":"IF($E$3=1,\"\",$A$3+1)","v":2023},null,{"$f":"ROUND(DATE($A$3+1,4,MOD(234-11*MOD($A$3+1,19),30))/7,)*7-6","v":"2023-04-09"},null,null,null,null,null,null,null,null,null,null,null,null,null,null,null,null,null,null,null,null,null,null,null,null,null,0]
["Jour de l'an",null,null,null,null,"=",null,null,{"$f":"IF(AND(DATE($A$3,1,1)>=$A$8,DATE($A$3,1,1)<=EOMONTH($S$41,0)),DATE($A$3,1,1),\"\")","v":""},null,null,null,null,null,null,null,{"$f":"IF(AND(DATE($A$3+1,1,1)>=$A$8,DATE($A$3+1,1,1)<=EOMONTH($S$41,0)),DATE($A$3+1,1,1),\"\")","v":"2023-01-01"},null,null,null,null,null,null,null,null,null,null,null,null,null,null,null,null,null,null,null,null,null,null,null,null,null,null,null,0]
["Lundi de Pâques",null,null,null,null,"=",null,null,{"$f":"IF(AND(K69+1>=$A$8,K69+1<=EOMONTH($S$41,0)),K69+1,\"\")","v":""},null,null,null,null,null,null,null,{"$f":"IF(AND(S69+1>=$A$8,S69+1<=EOMONTH($S$41,0)),S69+1,\"\")","v":"2023-04-10"},null,null,null,null,null,null,null,null,null,null,null,null,null,null,null,null,null,null,null,null,null,null,null,null,null,null,null,0]
["Fête du Travail",null,null,null,null,"=",null,null,{"$f":"IF(AND(DATE($A$3,5,1)>=$A$8,DATE($A$3,5,1)<=EOMONTH($S$41,0)),DATE($A$3,5,1),\"\")","v":"2022-05-01"},null,null,null,null,null,null,null,{"$f":"IF(AND(DATE($A$3+1,5,1)>=$A$8,DATE($A$3+1,5,1)<=EOMONTH($S$41,0)),DATE($A$3+1,5,1),\"\")","v":""},null,null,null,null,null,null,null,null,null,null,null,null,null,null,null,null,null,null,null,null,null,null,null,null,null,null,null,0]
["Victoire 1945",null,null,null,null,"=",null,null,{"$f":"IF(AND(DATE($A$3,5,8)>=$A$8,DATE($A$3,5,8)<=EOMONTH($S$41,0)),DATE($A$3,5,8),\"\")","v":"2022-05-08"},null,null,null,null,null,null,null,{"$f":"IF(AND(DATE($A$3+1,5,8)>=$A$8,DATE($A$3+1,5,8)<=EOMONTH($S$41,0)),DATE($A$3+1,5,8),\"\")","v":""},null,null,null,null,null,null,null,null,null,null,null,null,null,null,null,null,null,null,null,null,null,null,null,null,null,null,null,0]
["Ascension",null,null,null,null,"=",null,null,{"$f":"IF(AND(K69+39>=$A$8,K69+39<=EOMONTH($S$41,0)),K69+39,\"\")","v":"2022-05-26"},null,null,null,null,null,null,null,{"$f":"IF(AND(S69+39>=$A$8,S69+39<=EOMONTH($S$41,0)),S69+39,\"\")","v":""},null,null,null,null,null,null,null,null,null,null,null,null,null,null,null,null,null,null,null,null,null,null,null,null,null,null,null,1]
["Lundi de Pentecôte",null,null,null,null,"=",null,null,{"$f":"IF(AND(K69+50>=$A$8,K69+50<=EOMONTH($S$41,0)),K69+50,\"\")","v":"2022-06-06"},null,null,null,null,null,null,null,{"$f":"IF(AND(S69+50>=$A$8,S69+50<=EOMONTH($S$41,0)),S69+50,\"\")","v":""},null,null,null,null,null,null,null,null,null,null,null,null,null,null,null,null,null,null,null,null,null,null,null,null,null,null,null,0]
["Fête Nationale",null,null,null,null,"=",null,null,{"$f":"IF(AND(DATE($A$3,7,14)>=$A$8,DATE($A$3,7,14)<=EOMONTH($S$41,0)),DATE($A$3,7,14),\"\")","v":"2022-07-14"},null,null,null,null,null,null,null,{"$f":"IF(AND(DATE($A$3+1,7,14)>=$A$8,DATE($A$3+1,7,14)<=EOMONTH($S$41,0)),DATE($A$3+1,7,14),\"\")","v":""},null,null,null,null,null,null,null,null,null,null,null,null,null,null,null,null,null,null,null,null,null,null,null,null,null,null,null,0]
["Assomption",null,null,null,null,"=",null,null,{"$f":"IF(AND(DATE($A$3,8,15)>=$A$8,DATE($A$3,8,15)<=EOMONTH($S$41,0)),DATE($A$3,8,15),\"\")","v":"2022-08-15"},null,null,null,null,null,null,null,{"$f":"IF(AND(DATE($A$3+1,8,15)>=$A$8,DATE($A$3+1,8,15)<=EOMONTH($S$41,0)),DATE($A$3+1,8,15),\"\")","v":""},null,null,null,null,null,null,null,null,null,null,null,null,null,null,null,null,null,null,null,null,null,null,null,null,null,null,null,0]
["Toussaint",null,null,null,null,"=",null,null,{"$f":"IF(AND(DATE($A$3,11,1)>=$A$8,DATE($A$3,11,1)<=EOMONTH($S$41,0)),DATE($A$3,11,1),\"\")","v":"2022-11-01"},null,null,null,null,null,null,null,{"$f":"IF(AND(DATE($A$3+1,11,1)>=$A$8,DATE($A$3+1,11,1)<=EOMONTH($S$41,0)),DATE($A$3+1,11,1),\"\")","v":""},null,null,null,null,null,null,null,null,null,null,null,null,null,null,null,null,null,null,null,null,null,null,null,null,null,null,null,0]
["Armistice 1918",null,null,null,null,"=",null,null,{"$f":"IF(AND(DATE($A$3,11,11)>=$A$8,DATE($A$3,11,11)<=EOMONTH($S$41,0)),DATE($A$3,11,11),\"\")","v":"2022-11-11"},null,null,null,null,null,null,null,{"$f":"IF(AND(DATE($A$3+1,11,11)>=$A$8,DATE($A$3+1,11,11)<=EOMONTH($S$41,0)),DATE($A$3+1,11,11),\"\")","v":""},null,null,null,null,null,null,null,null,null,null,null,null,null,null,null,null,null,null,null,null,null,null,null,null,null,null,null,0]
["Noël",null,null,null,null,"=",null,null,{"$f":"IF(AND(DATE($A$3,12,25)>=$A$8,DATE($A$3,12,25)<=EOMONTH($S$41,0)),DATE($A$3,12,25),\"\")","v":"2022-12-25"},null,null,null,null,null,null,null,{"$f":"IF(AND(DATE($A$3+1,12,25)>=$A$8,DATE($A$3+1,12,25)<=EOMONTH($S$41,0)),DATE($A$3+1,12,25),\"\")","v":""},null,null,null,null,null,null,null,null,null,null,null,null,null,null,null,null,null,null,null,null,null,null,null,null,null,null,null,0]
[null,null,null,null,null,null,null,null,null,null,null,null,null,null,null,null,null,null,null,null,null,null,null,null,null,null,null,null,null,null,null,null,null,null,null,null,null,null,null,null,null,null,null,null,1]
[null,null,null,null,null,null,null,null,null,null,null,null,null,null,null,null,null,null,null,null,null,null,null,null,null,null,null,null,null,null,null,null,null,null,null,null,null,null,null,null,null,null,null,null,0]
[null,null,null,null,null,null,null,null,{"$f":"NBMOIS(I70:X80,5)","v":3},null,null,null,null,null,null,null,null,null,null,null,null,null,null,null,null,null,null,null,null,null,null,null,null,null,null,null,null,null,null,null,null,null,null,null,0]
[null,null,null,null,null,null,null,null,null,null,null,null,null,null,null,null,null,null,null,null,null,null,null,null,null,null,null,null,null,null,null,null,null,null,null,null,null,null,null,null,null,null,null,null,0]
[null,null,null,null,null,null,null,null,null,null,null,null,null,null,null,null,null,null,null,null,null,null,null,null,null,null,null,null,null,null,null,null,null,null,null,null,null,null,null,null,null,null,null,null,0]
[null,null,null,null,null,null,null,null,null,null,null,null,null,null,null,null,null,null,null,null,null,null,null,null,null,null,null,null,null,null,null,null,null,null,null,null,null,null,null,null,null,null,null,null,0]
[null,null,null,null,null,null,null,null,null,null,null,null,null,null,null,null,null,null,null,null,null,null,null,null,null,null,null,null,null,null,null,null,null,null,null,null,null,null,null,null,null,null,null,null,0]
[null,null,null,null,null,null,null,null,null,null,null,null,null,null,null,null,null,null,null,null,null,null,null,null,null,null,null,null,null,null,null,null,null,null,null,null,null,null,null,null,null,null,null,null,1]
[null,null,null,null,null,null,null,null,null,null,null,null,null,null,null,null,null,null,null,null,null,null,null,null,null,null,null,null,null,null,null,null,null,null,null,null,null,null,null,null,null,null,null,null,0]
[null,null,null,null,null,null,null,null,null,null,null,null,null,null,null,null,null,null,null,null,null,null,null,null,null,null,null,null,null,null,null,null,null,null,null,null,null,null,null,null,null,null,null,null,0]
[null,null,null,null,null,null,null,null,null,null,null,null,null,null,null,null,null,null,null,null,null,null,null,null,null,null,null,null,null,null,null,null,null,null,null,null,null,null,null,null,null,null,null,null,0]
[null,null,null,null,null,null,null,null,null,null,null,null,null,null,null,null,null,null,null,null,null,null,null,null,null,null,null,null,null,null,null,null,null,null,null,null,null,null,null,null,null,null,null,null,0]
[null,null,null,null,null,null,null,null,null,null,null,null,null,null,null,null,null,null,null,null,null,null,null,null,null,null,null,null,null,null,null,null,null,null,null,null,null,null,null,null,null,null,null,null,0]
[null,null,null,null,null,null,null,null,null,null,null,null,null,null,null,null,null,null,null,null,null,null,null,null,null,null,null,null,null,null,null,null,null,null,null,null,null,null,null,null,null,null,null,null,0]
[null,null,null,null,null,null,null,null,null,null,null,null,null,null,null,null,null,null,null,null,null,null,null,null,null,null,null,null,null,null,null,null,null,null,null,null,null,null,null,null,null,null,null,null,1]
[null,null,null,null,null,null,null,null,null,null,null,null,null,null,null,null,null,null,null,null,null,null,null,null,null,null,null,null,null,null,null,null,null,null,null,null,null,null,null,null,null,null,null,null,0]
[null,null,null,null,null,null,null,null,null,null,null,null,null,null,null,null,null,null,null,null,null,null,null,null,null,null,null,null,null,null,null,null,null,null,null,null,null,null,null,null,null,null,null,null,0]
[null,null,null,null,null,null,null,null,null,null,null,null,null,null,null,null,null,null,null,null,null,null,null,null,null,null,null,null,null,null,null,null,null,null,null,null,null,null,null,null,null,null,null,null,0]
[null,null,null,null,null,null,null,null,null,null,null,null,null,null,null,null,null,null,null,null,null,null,null,null,null,null,null,null,null,null,null,null,null,null,null,null,null,null,null,null,null,null,null,null,0]
[null,null,null,null,null,null,null,null,null,null,null,null,null,null,null,null,null,null,null,null,null,null,null,null,null,null,null,null,null,null,null,null,null,null,null,null,null,null,null,null,null,null,null,null,0]
[null,null,null,null,null,null,null,null,null,null,null,null,null,null,null,null,null,null,null,null,null,null,null,null,null,null,null,null,null,null,null,null,null,null,null,null,null,null,null,null,null,null,null,null,0]
[null,null,null,null,null,null,null,null,null,null,null,null,null,null,null,null,null,null,null,null,null,null,null,null,null,null,null,null,null,null,null,null,null,null,null,null,null,null,null,null,null,null,null,null,1]
[null,null,null,null,null,null,null,null,null,null,null,null,null,null,null,null,null,null,null,null,null,null,null,null,null,null,null,null,null,null,null,null,null,null,null,null,null,null,null,null,null,null,null,null,0]
[null,null,null,null,null,null,null,null,null,null,null,null,null,null,null,null,null,null,null,null,null,null,null,null,null,null,null,null,null,null,null,null,null,null,null,null,null,null,null,null,null,null,null,null,0]
[null,null,null,null,null,null,null,null,null,null,null,null,null,null,null,null,null,null,null,null,null,null,null,null,null,null,null,null,null,null,null,null,null,null,null,null,null,null,null,null,null,null,null,null,0]
[null,null,null,null,null,null,null,null,null,null,null,null,null,null,null,null,null,null,null,null,null,null,null,null,null,null,null,null,null,null,null,null,null,null,null,null,null,null,null,null,null,null,null,null,0]
[null,null,null,null,null,null,null,null,null,null,null,null,null,null,null,null,null,null,null,null,null,null,null,null,null,null,null,null,null,null,null,null,null,null,null,null,null,null,null,null,null,null,null,null,0]
[null,null,null,null,null,null,null,null,null,null,null,null,null,null,null,null,null,null,null,null,null,null,null,null,null,null,null,null,null,null,null,null,null,null,null,null,null,null,null,null,null,null,null,null,0]
[null,null,null,null,null,null,null,null,null,null,null,null,null,null,null,null,null,null,null,null,null,null,null,null,null,null,null,null,null,null,null,null,null,null,null,null,null,null,null,null,null,null,null,null,1]
[null,null,null,null,null,null,null,null,null,null,null,null,null,null,null,null,null,null,null,null,null,null,null,null,null,null,null,null,null,null,null,null,null,null,null,null,null,null,null,null,null,null,null,null,0]
[null,null,null,null,null,null,null,null,null,null,null,null,null,null,null,null,null,null,null,null,null,null,null,null,null,null,null,null,null,null,null,null,null,null,null,null,null,null,null,null,null,null,null,null,0]
[null,null,null,null,null,null,null,null,null,null,null,null,null,null,null,null,null,null,null,null,null,null,null,null,null,null,null,null,null,null,null,null,null,null,null,null,null,null,null,null,null,null,null,null,0]
[null,null,null,null,null,null,null,null,null,null,null,null,null,null,null,null,null,null,null,null,null,null,null,null,null,null,null,null,null,null,null,null,null,null,null,null,null,null,null,null,null,null,null,null,0]
[null,null,null,null,null,null,null,null,null,null,null,null,null,null,null,null,null,null,null,null,null,null,null,null,null,null,null,null,null,null,null,null,null,null,null,null,null,null,null,null,null,null,null,null,0]
[null,null,null,null,null,null,null,null,null,null,null,null,null,null,null,null,null,null,null,null,null,null,null,null,null,null,null,null,null,null,null,null,null,null,null,null,null,null,null,null,null,null,null,null,0]
[null,null,null,null,null,null,null,null,null,null,null,null,null,null,null,null,null,null,null,null,null,null,null,null,null,null,null,null,null,null,null,null,null,null,null,null,null,null,null,null,null,null,null,null,1]
[null,null,null,null,null,null,null,null,null,null,null,null,null,null,null,null,null,null,null,null,null,null,null,null,null,null,null,null,null,null,null,null,null,null,null,null,null,null,null,null,null,null,null,null,0]
[null,null,null,null,null,null,null,null,null,null,null,null,null,null,null,null,null,null,null,null,null,null,null,null,null,null,null,null,null,null,null,null,null,null,null,null,null,null,null,null,null,null,null,null,0]
[null,null,null,null,null,null,null,null,null,null,null,null,null,null,null,null,null,null,null,null,null,null,null,null,null,null,null,null,null,null,null,null,null,null,null,null,null,null,null,null,null,null,null,null,0]
[null,null,null,null,null,null,null,null,null,null,null,null,null,null,null,null,null,null,null,null,null,null,null,null,null,null,null,null,null,null,null,null,null,null,null,null,null,null,null,null,null,null,null,null,0]
[null,null,null,null,null,null,null,null,null,null,null,null,null,null,null,null,null,null,null,null,null,null,null,null,null,null,null,null,null,null,null,null,null,null,null,null,null,null,null,null,null,null,null,null,0]
[null,null,null,null,null,null,null,null,null,null,null,null,null,null,null,null,null,null,null,null,null,null,null,null,null,null,null,null,null,null,null,null,null,null,null,null,null,null,null,null,null,null,null,null,0]
[null,null,null,null,null,null,null,null,null,null,null,null,null,null,null,null,null,null,null,null,null,null,null,null,null,null,null,null,null,null,null,null,null,null,null,null,null,null,null,null,null,null,null,null,1]
[null,null,null,null,null,null,null,null,null,null,null,null,null,null,null,null,null,null,null,null,null,null,null,null,null,null,null,null,null,null,null,null,null,null,null,null,null,null,null,null,null,null,null,null,0]
[null,null,null,null,null,null,null,null,null,null,null,null,null,null,null,null,null,null,null,null,null,null,null,null,null,null,null,null,null,null,null,null,null,null,null,null,null,null,null,null,null,null,null,null,0]
[null,null,null,null,null,null,null,null,null,null,null,null,null,null,null,null,null,null,null,null,null,null,null,null,null,null,null,null,null,null,null,null,null,null,null,null,null,null,null,null,null,null,null,null,0]
[null,null,null,null,null,null,null,null,null,null,null,null,null,null,null,null,null,null,null,null,null,null,null,null,null,null,null,null,null,null,null,null,null,null,null,null,null,null,null,null,null,null,null,null,0]
[null,null,null,null,null,null,null,null,null,null,null,null,null,null,null,null,null,null,null,null,null,null,null,null,null,null,null,null,null,null,null,null,null,null,null,null,null,null,null,null,null,null,null,null,0]
[null,null,null,null,null,null,null,null,null,null,null,null,null,null,null,null,null,null,null,null,null,null,null,null,null,null,null,null,null,null,null,null,null,null,null,null,null,null,null,null,null,null,null,null,0]
[null,null,null,null,null,null,null,null,null,null,null,null,null,null,null,null,null,null,null,null,null,null,null,null,null,null,null,null,null,null,null,null,null,null,null,null,null,null,null,null,null,null,null,null,1]
[null,null,null,null,null,null,null,null,null,null,null,null,null,null,null,null,null,null,null,null,null,null,null,null,null,null,null,null,null,null,null,null,null,null,null,null,null,null,null,null,null,null,null,null,0]
[null,null,null,null,null,null,null,null,null,null,null,null,null,null,null,null,null,null,null,null,null,null,null,null,null,null,null,null,null,null,null,null,null,null,null,null,null,null,null,null,null,null,null,null,0]
[null,null,null,null,null,null,null,null,null,null,null,null,null,null,null,null,null,null,null,null,null,null,null,null,null,null,null,null,null,null,null,null,null,null,null,null,null,null,null,null,null,null,null,null,0]
[null,null,null,null,null,null,null,null,null,null,null,null,null,null,null,null,null,null,null,null,null,null,null,null,null,null,null,null,null,null,null,null,null,null,null,null,null,null,null,null,null,null,null,null,0]
[null,null,null,null,null,null,null,null,null,null,null,null,null,null,null,null,null,null,null,null,null,null,null,null,null,null,null,null,null,null,null,null,null,null,null,null,null,null,null,null,null,null,null,null,0]
[null,null,null,null,null,null,null,null,null,null,null,null,null,null,null,null,null,null,null,null,null,null,null,null,null,null,null,null,null,null,null,null,null,null,null,null,null,null,null,null,null,null,null,null,0]
[null,null,null,null,null,null,null,null,null,null,null,null,null,null,null,null,null,null,null,null,null,null,null,null,null,null,null,null,null,null,null,null,null,null,null,null,null,null,null,null,null,null,null,null,1]
[null,null,null,null,null,null,null,null,null,null,null,null,null,null,null,null,null,null,null,null,null,null,null,null,null,null,null,null,null,null,null,null,null,null,null,null,null,null,null,null,null,null,null,null,0]
[null,null,null,null,null,null,null,null,null,null,null,null,null,null,null,null,null,null,null,null,null,null,null,null,null,null,null,null,null,null,null,null,null,null,null,null,null,null,null,null,null,null,null,null,0]
[null,null,null,null,null,null,null,null,null,null,null,null,null,null,null,null,null,null,null,null,null,null,null,null,null,null,null,null,null,null,null,null,null,null,null,null,null,null,null,null,null,null,null,null,0]
[null,null,null,null,null,null,null,null,null,null,null,null,null,null,null,null,null,null,null,null,null,null,null,null,null,null,null,null,null,null,null,null,null,null,null,null,null,null,null,null,null,null,null,null,0]
[null,null,null,null,null,null,null,null,null,null,null,null,null,null,null,null,null,null,null,null,null,null,null,null,null,null,null,null,null,null,null,null,null,null,null,null,null,null,null,null,null,null,null,null,0]
[null,null,null,null,null,null,null,null,null,null,null,null,null,null,null,null,null,null,null,null,null,null,null,null,null,null,null,null,null,null,null,null,null,null,null,null,null,null,null,null,null,null,null,null,0]
[null,null,null,null,null,null,null,null,null,null,null,null,null,null,null,null,null,null,null,null,null,null,null,null,null,null,null,null,null,null,null,null,null,null,null,null,null,null,null,null,null,null,null,null,1]
[null,null,null,null,null,null,null,null,null,null,null,null,null,null,null,null,null,null,null,null,null,null,null,null,null,null,null,null,null,null,null,null,null,null,null,null,null,null,null,null,null,null,null,null,0]
[null,null,null,null,null,null,null,null,null,null,null,null,null,null,null,null,null,null,null,null,null,null,null,null,null,null,null,null,null,null,null,null,null,null,null,null,null,null,null,null,null,null,null,null,0]
[null,null,null,null,null,null,null,null,null,null,null,null,null,null,null,null,null,null,null,null,null,null,null,null,null,null,null,null,null,null,null,null,null,null,null,null,null,null,null,null,null,null,null,null,0]
[null,null,null,null,null,null,null,null,null,null,null,null,null,null,null,null,null,null,null,null,null,null,null,null,null,null,null,null,null,null,null,null,null,null,null,null,null,null,null,null,null,null,null,null,0]
[null,null,null,null,null,null,null,null,null,null,null,null,null,null,null,null,null,null,null,null,null,null,null,null,null,null,null,null,null,null,null,null,null,null,null,null,null,null,null,null,null,null,null,null,0]
[null,null,null,null,null,null,null,null,null,null,null,null,null,null,null,null,null,null,null,null,null,null,null,null,null,null,null,null,null,null,null,null,null,null,null,null,null,null,null,null,null,null,null,null,0]
[null,null,null,null,null,null,null,null,null,null,null,null,null,null,null,null,null,null,null,null,null,null,null,null,null,null,null,null,null,null,null,null,null,null,null,null,null,null,null,null,null,null,null,null,1]
[null,null,null,null,null,null,null,null,null,null,null,null,null,null,null,null,null,null,null,null,null,null,null,null,null,null,null,null,null,null,null,null,null,null,null,null,null,null,null,null,null,null,null,null,0]
[null,null,null,null,null,null,null,null,null,null,null,null,null,null,null,null,null,null,null,null,null,null,null,null,null,null,null,null,null,null,null,null,null,null,null,null,null,null,null,null,null,null,null,null,0]
[null,null,null,null,null,null,null,null,null,null,null,null,null,null,null,null,null,null,null,null,null,null,null,null,null,null,null,null,null,null,null,null,null,null,null,null,null,null,null,null,null,null,null,null,0]
[null,null,null,null,null,null,null,null,null,null,null,null,null,null,null,null,null,null,null,null,null,null,null,null,null,null,null,null,null,null,null,null,null,null,null,null,null,null,null,null,null,null,null,null,0]
[null,null,null,null,null,null,null,null,null,null,null,null,null,null,null,null,null,null,null,null,null,null,null,null,null,null,null,null,null,null,null,null,null,null,null,null,null,null,null,null,null,null,null,null,0]
[null,null,null,null,null,null,null,null,null,null,null,null,null,null,null,null,null,null,null,null,null,null,null,null,null,null,null,null,null,null,null,null,null,null,null,null,null,null,null,null,null,null,null,null,0]
[null,null,null,null,null,null,null,null,null,null,null,null,null,null,null,null,null,null,null,null,null,null,null,null,null,null,null,null,null,null,null,null,null,null,null,null,null,null,null,null,null,null,null,null,1]
[null,null,null,null,null,null,null,null,null,null,null,null,null,null,null,null,null,null,null,null,null,null,null,null,null,null,null,null,null,null,null,null,null,null,null,null,null,null,null,null,null,null,null,null,0]
[null,null,null,null,null,null,null,null,null,null,null,null,null,null,null,null,null,null,null,null,null,null,null,null,null,null,null,null,null,null,null,null,null,null,null,null,null,null,null,null,null,null,null,null,0]
[null,null,null,null,null,null,null,null,null,null,null,null,null,null,null,null,null,null,null,null,null,null,null,null,null,null,null,null,null,null,null,null,null,null,null,null,null,null,null,null,null,null,null,null,0]
[null,null,null,null,null,null,null,null,null,null,null,null,null,null,null,null,null,null,null,null,null,null,null,null,null,null,null,null,null,null,null,null,null,null,null,null,null,null,null,null,null,null,null,null,0]
[null,null,null,null,null,null,null,null,null,null,null,null,null,null,null,null,null,null,null,null,null,null,null,null,null,null,null,null,null,null,null,null,null,null,null,null,null,null,null,null,null,null,null,null,0]
[null,null,null,null,null,null,null,null,null,null,null,null,null,null,null,null,null,null,null,null,null,null,null,null,null,null,null,null,null,null,null,null,null,null,null,null,null,null,null,null,null,null,null,null,0]
[null,null,null,null,null,null,null,null,null,null,null,null,null,null,null,null,null,null,null,null,null,null,null,null,null,null,null,null,null,null,null,null,null,null,null,null,null,null,null,null,null,null,null,null,1]
[null,null,null,null,null,null,null,null,null,null,null,null,null,null,null,null,null,null,null,null,null,null,null,null,null,null,null,null,null,null,null,null,null,null,null,null,null,null,null,null,null,null,null,null,0]
[null,null,null,null,null,null,null,null,null,null,null,null,null,null,null,null,null,null,null,null,null,null,null,null,null,null,null,null,null,null,null,null,null,null,null,null,null,null,null,null,null,null,null,null,0]
[null,null,null,null,null,null,null,null,null,null,null,null,null,null,null,null,null,null,null,null,null,null,null,null,null,null,null,null,null,null,null,null,null,null,null,null,null,null,null,null,null,null,null,null,0]
[null,null,null,null,null,null,null,null,null,null,null,null,null,null,null,null,null,null,null,null,null,null,null,null,null,null,null,null,null,null,null,null,null,null,null,null,null,null,null,null,null,null,null,null,0]
[null,null,null,null,null,null,null,null,null,null,null,null,null,null,null,null,null,null,null,null,null,null,null,null,null,null,null,null,null,null,null,null,null,null,null,null,null,null,null,null,null,null,null,null,0]
[null,null,null,null,null,null,null,null,null,null,null,null,null,null,null,null,null,null,null,null,null,null,null,null,null,null,null,null,null,null,null,null,null,null,null,null,null,null,null,null,null,null,null,null,0]
[null,null,null,null,null,null,null,null,null,null,null,null,null,null,null,null,null,null,null,null,null,null,null,null,null,null,null,null,null,null,null,null,null,null,null,null,null,null,null,null,null,null,null,null,1]
[null,null,null,null,null,null,null,null,null,null,null,null,null,null,null,null,null,null,null,null,null,null,null,null,null,null,null,null,null,null,null,null,null,null,null,null,null,null,null,null,null,null,null,null,0]
[null,null,null,null,null,null,null,null,null,null,null,null,null,null,null,null,null,null,null,null,null,null,null,null,null,null,null,null,null,null,null,null,null,null,null,null,null,null,null,null,null,null,null,null,0]
[null,null,null,null,null,null,null,null,null,null,null,null,null,null,null,null,null,null,null,null,null,null,null,null,null,null,null,null,null,null,null,null,null,null,null,null,null,null,null,null,null,null,null,null,0]
[null,null,null,null,null,null,null,null,null,null,null,null,null,null,null,null,null,null,null,null,null,null,null,null,null,null,null,null,null,null,null,null,null,null,null,null,null,null,null,null,null,null,null,null,0]
[null,null,null,null,null,null,null,null,null,null,null,null,null,null,null,null,null,null,null,null,null,null,null,null,null,null,null,null,null,null,null,null,null,null,null,null,null,null,null,null,null,null,null,null,0]
[null,null,null,null,null,null,null,null,null,null,null,null,null,null,null,null,null,null,null,null,null,null,null,null,null,null,null,null,null,null,null,null,null,null,null,null,null,null,null,null,null,null,null,null,0]
[null,null,null,null,null,null,null,null,null,null,null,null,null,null,null,null,null,null,null,null,null,null,null,null,null,null,null,null,null,null,null,null,null,null,null,null,null,null,null,null,null,null,null,null,1]
[null,null,null,null,null,null,null,null,null,null,null,null,null,null,null,null,null,null,null,null,null,null,null,null,null,null,null,null,null,null,null,null,null,null,null,null,null,null,null,null,null,null,null,null,0]
[null,null,null,null,null,null,null,null,null,null,null,null,null,null,null,null,null,null,null,null,null,null,null,null,null,null,null,null,null,null,null,null,null,null,null,null,null,null,null,null,null,null,null,null,0]
[null,null,null,null,null,null,null,null,null,null,null,null,null,null,null,null,null,null,null,null,null,null,null,null,null,null,null,null,null,null,null,null,null,null,null,null,null,null,null,null,null,null,null,null,0]
[null,null,null,null,null,null,null,null,null,null,null,null,null,null,null,null,null,null,null,null,null,null,null,null,null,null,null,null,null,null,null,null,null,null,null,null,null,null,null,null,null,null,null,null,0]
[null,null,null,null,null,null,null,null,null,null,null,null,null,null,null,null,null,null,null,null,null,null,null,null,null,null,null,null,null,null,null,null,null,null,null,null,null,null,null,null,null,null,null,null,0]
[null,null,null,null,null,null,null,null,null,null,null,null,null,null,null,null,null,null,null,null,null,null,null,null,null,null,null,null,null,null,null,null,null,null,null,null,null,null,null,null,null,null,null,null,0]
[null,null,null,null,null,null,null,null,null,null,null,null,null,null,null,null,null,null,null,null,null,null,null,null,null,null,null,null,null,null,null,null,null,null,null,null,null,null,null,null,null,null,null,null,1]
[null,null,null,null,null,null,null,null,null,null,null,null,null,null,null,null,null,null,null,null,null,null,null,null,null,null,null,null,null,null,null,null,null,null,null,null,null,null,null,null,null,null,null,null,0]
[null,null,null,null,null,null,null,null,null,null,null,null,null,null,null,null,null,null,null,null,null,null,null,null,null,null,null,null,null,null,null,null,null,null,null,null,null,null,null,null,null,null,null,null,0]
[null,null,null,null,null,null,null,null,null,null,null,null,null,null,null,null,null,null,null,null,null,null,null,null,null,null,null,null,null,null,null,null,null,null,null,null,null,null,null,null,null,null,null,null,0]
[null,null,null,null,null,null,null,null,null,null,null,null,null,null,null,null,null,null,null,null,null,null,null,null,null,null,null,null,null,null,null,null,null,null,null,null,null,null,null,null,null,null,null,null,0]
[null,null,null,null,null,null,null,null,null,null,null,null,null,null,null,null,null,null,null,null,null,null,null,null,null,null,null,null,null,null,null,null,null,null,null,null,null,null,null,null,null,null,null,null,0]
[null,null,null,null,null,null,null,null,null,null,null,null,null,null,null,null,null,null,null,null,null,null,null,null,null,null,null,null,null,null,null,null,null,null,null,null,null,null,null,null,null,null,null,null,0]
[null,null,null,null,null,null,null,null,null,null,null,null,null,null,null,null,null,null,null,null,null,null,null,null,null,null,null,null,null,null,null,null,null,null,null,null,null,null,null,null,null,null,null,null,1]
[null,null,null,null,null,null,null,null,null,null,null,null,null,null,null,null,null,null,null,null,null,null,null,null,null,null,null,null,null,null,null,null,null,null,null,null,null,null,null,null,null,null,null,null,0]
[null,null,null,null,null,null,null,null,null,null,null,null,null,null,null,null,null,null,null,null,null,null,null,null,null,null,null,null,null,null,null,null,null,null,null,null,null,null,null,null,null,null,null,null,0]
[null,null,null,null,null,null,null,null,null,null,null,null,null,null,null,null,null,null,null,null,null,null,null,null,null,null,null,null,null,null,null,null,null,null,null,null,null,null,null,null,null,null,null,null,0]
[null,null,null,null,null,null,null,null,null,null,null,null,null,null,null,null,null,null,null,null,null,null,null,null,null,null,null,null,null,null,null,null,null,null,null,null,null,null,null,null,null,null,null,null,0]
[null,null,null,null,null,null,null,null,null,null,null,null,null,null,null,null,null,null,null,null,null,null,null,null,null,null,null,null,null,null,null,null,null,null,null,null,null,null,null,null,null,null,null,null,0]
[null,null,null,null,null,null,null,null,null,null,null,null,null,null,null,null,null,null,null,null,null,null,null,null,null,null,null,null,null,null,null,null,null,null,null,null,null,null,null,null,null,null,null,null,0]
[null,null,null,null,null,null,null,null,null,null,null,null,null,null,null,null,null,null,null,null,null,null,null,null,null,null,null,null,null,null,null,null,null,null,null,null,null,null,null,null,null,null,null,null,1]
[null,null,null,null,null,null,null,null,null,null,null,null,null,null,null,null,null,null,null,null,null,null,null,null,null,null,null,null,null,null,null,null,null,null,null,null,null,null,null,null,null,null,null,null,0]
[null,null,null,null,null,null,null,null,null,null,null,null,null,null,null,null,null,null,null,null,null,null,null,null,null,null,null,null,null,null,null,null,null,null,null,null,null,null,null,null,null,null,null,null,0]
[null,null,null,null,null,null,null,null,null,null,null,null,null,null,null,null,null,null,null,null,null,null,null,null,null,null,null,null,null,null,null,null,null,null,null,null,null,null,null,null,null,null,null,null,0]
[null,null,null,null,null,null,null,null,null,null,null,null,null,null,null,null,null,null,null,null,null,null,null,null,null,null,null,null,null,null,null,null,null,null,null,null,null,null,null,null,null,null,null,null,0]
[null,null,null,null,null,null,null,null,null,null,null,null,null,null,null,null,null,null,null,null,null,null,null,null,null,null,null,null,null,null,null,null,null,null,null,null,null,null,null,null,null,null,null,null,0]
[null,null,null,null,null,null,null,null,null,null,null,null,null,null,null,null,null,null,null,null,null,null,null,null,null,null,null,null,null,null,null,null,null,null,null,null,null,null,null,null,null,null,null,null,0]
[null,null,null,null,null,null,null,null,null,null,null,null,null,null,null,null,null,null,null,null,null,null,null,null,null,null,null,null,null,null,null,null,null,null,null,null,null,null,null,null,null,null,null,null,1]
[null,null,null,null,null,null,null,null,null,null,null,null,null,null,null,null,null,null,null,null,null,null,null,null,null,null,null,null,null,null,null,null,null,null,null,null,null,null,null,null,null,null,null,null,0]
[null,null,null,null,null,null,null,null,null,null,null,null,null,null,null,null,null,null,null,null,null,null,null,null,null,null,null,null,null,null,null,null,null,null,null,null,null,null,null,null,null,null,null,null,0]
[null,null,null,null,null,null,null,null,null,null,null,null,null,null,null,null,null,null,null,null,null,null,null,null,null,null,null,null,null,null,null,null,null,null,null,null,null,null,null,null,null,null,null,null,0]
[null,null,null,null,null,null,null,null,null,null,null,null,null,null,null,null,null,null,null,null,null,null,null,null,null,null,null,null,null,null,null,null,null,null,null,null,null,null,null,null,null,null,null,null,0]
[null,null,null,null,null,null,null,null,null,null,null,null,null,null,null,null,null,null,null,null,null,null,null,null,null,null,null,null,null,null,null,null,null,null,null,null,null,null,null,null,null,null,null,null,0]
[null,null,null,null,null,null,null,null,null,null,null,null,null,null,null,null,null,null,null,null,null,null,null,null,null,null,null,null,null,null,null,null,null,null,null,null,null,null,null,null,null,null,null,null,0]
[null,null,null,null,null,null,null,null,null,null,null,null,null,null,null,null,null,null,null,null,null,null,null,null,null,null,null,null,null,null,null,null,null,null,null,null,null,null,null,null,null,null,null,null,1]
[null,null,null,null,null,null,null,null,null,null,null,null,null,null,null,null,null,null,null,null,null,null,null,null,null,null,null,null,null,null,null,null,null,null,null,null,null,null,null,null,null,null,null,null,0]
[null,null,null,null,null,null,null,null,null,null,null,null,null,null,null,null,null,null,null,null,null,null,null,null,null,null,null,null,null,null,null,null,null,null,null,null,null,null,null,null,null,null,null,null,0]
[null,null,null,null,null,null,null,null,null,null,null,null,null,null,null,null,null,null,null,null,null,null,null,null,null,null,null,null,null,null,null,null,null,null,null,null,null,null,null,null,null,null,null,null,0]
[null,null,null,null,null,null,null,null,null,null,null,null,null,null,null,null,null,null,null,null,null,null,null,null,null,null,null,null,null,null,null,null,null,null,null,null,null,null,null,null,null,null,null,null,0]
[null,null,null,null,null,null,null,null,null,null,null,null,null,null,null,null,null,null,null,null,null,null,null,null,null,null,null,null,null,null,null,null,null,null,null,null,null,null,null,null,null,null,null,null,0]
[null,null,null,null,null,null,null,null,null,null,null,null,null,null,null,null,null,null,null,null,null,null,null,null,null,null,null,null,null,null,null,null,null,null,null,null,null,null,null,null,null,null,null,null,0]
[null,null,null,null,null,null,null,null,null,null,null,null,null,null,null,null,null,null,null,null,null,null,null,null,null,null,null,null,null,null,null,null,null,null,null,null,null,null,null,null,null,null,null,null,1]
[null,null,null,null,null,null,null,null,null,null,null,null,null,null,null,null,null,null,null,null,null,null,null,null,null,null,null,null,null,null,null,null,null,null,null,null,null,null,null,null,null,null,null,null,0]
[null,null,null,null,null,null,null,null,null,null,null,null,null,null,null,null,null,null,null,null,null,null,null,null,null,null,null,null,null,null,null,null,null,null,null,null,null,null,null,null,null,null,null,null,0]
[null,null,null,null,null,null,null,null,null,null,null,null,null,null,null,null,null,null,null,null,null,null,null,null,null,null,null,null,null,null,null,null,null,null,null,null,null,null,null,null,null,null,null,null,0]
[null,null,null,null,null,null,null,null,null,null,null,null,null,null,null,null,null,null,null,null,null,null,null,null,null,null,null,null,null,null,null,null,null,null,null,null,null,null,null,null,null,null,null,null,0]
[null,null,null,null,null,null,null,null,null,null,null,null,null,null,null,null,null,null,null,null,null,null,null,null,null,null,null,null,null,null,null,null,null,null,null,null,null,null,null,null,null,null,null,null,0]
[null,null,null,null,null,null,null,null,null,null,null,null,null,null,null,null,null,null,null,null,null,null,null,null,null,null,null,null,null,null,null,null,null,null,null,null,null,null,null,null,null,null,null,null,0]
[null,null,null,null,null,null,null,null,null,null,null,null,null,null,null,null,null,null,null,null,null,null,null,null,null,null,null,null,null,null,null,null,null,null,null,null,null,null,null,null,null,null,null,null,1]
[null,null,null,null,null,null,null,null,null,null,null,null,null,null,null,null,null,null,null,null,null,null,null,null,null,null,null,null,null,null,null,null,null,null,null,null,null,null,null,null,null,null,null,null,0]
[null,null,null,null,null,null,null,null,null,null,null,null,null,null,null,null,null,null,null,null,null,null,null,null,null,null,null,null,null,null,null,null,null,null,null,null,null,null,null,null,null,null,null,null,0]
[null,null,null,null,null,null,null,null,null,null,null,null,null,null,null,null,null,null,null,null,null,null,null,null,null,null,null,null,null,null,null,null,null,null,null,null,null,null,null,null,null,null,null,null,0]
[null,null,null,null,null,null,null,null,null,null,null,null,null,null,null,null,null,null,null,null,null,null,null,null,null,null,null,null,null,null,null,null,null,null,null,null,null,null,null,null,null,null,null,null,0]
[null,null,null,null,null,null,null,null,null,null,null,null,null,null,null,null,null,null,null,null,null,null,null,null,null,null,null,null,null,null,null,null,null,null,null,null,null,null,null,null,null,null,null,null,0]
[null,null,null,null,null,null,null,null,null,null,null,null,null,null,null,null,null,null,null,null,null,null,null,null,null,null,null,null,null,null,null,null,null,null,null,null,null,null,null,null,null,null,null,null,0]
[null,null,null,null,null,null,null,null,null,null,null,null,null,null,null,null,null,null,null,null,null,null,null,null,null,null,null,null,null,null,null,null,null,null,null,null,null,null,null,null,null,null,null,null,1]
[null,null,null,null,null,null,null,null,null,null,null,null,null,null,null,null,null,null,null,null,null,null,null,null,null,null,null,null,null,null,null,null,null,null,null,null,null,null,null,null,null,null,null,null,0]
[null,null,null,null,null,null,null,null,null,null,null,null,null,null,null,null,null,null,null,null,null,null,null,null,null,null,null,null,null,null,null,null,null,null,null,null,null,null,null,null,null,null,null,null,0]
[null,null,null,null,null,null,null,null,null,null,null,null,null,null,null,null,null,null,null,null,null,null,null,null,null,null,null,null,null,null,null,null,null,null,null,null,null,null,null,null,null,null,null,null,0]
[null,null,null,null,null,null,null,null,null,null,null,null,null,null,null,null,null,null,null,null,null,null,null,null,null,null,null,null,null,null,null,null,null,null,null,null,null,null,null,null,null,null,null,null,0]
[null,null,null,null,null,null,null,null,null,null,null,null,null,null,null,null,null,null,null,null,null,null,null,null,null,null,null,null,null,null,null,null,null,null,null,null,null,null,null,null,null,null,null,null,0]
[null,null,null,null,null,null,null,null,null,null,null,null,null,null,null,null,null,null,null,null,null,null,null,null,null,null,null,null,null,null,null,null,null,null,null,null,null,null,null,null,null,null,null,null,0]
[null,null,null,null,null,null,null,null,null,null,null,null,null,null,null,null,null,null,null,null,null,null,null,null,null,null,null,null,null,null,null,null,null,null,null,null,null,null,null,null,null,null,null,null,1]
[null,null,null,null,null,null,null,null,null,null,null,null,null,null,null,null,null,null,null,null,null,null,null,null,null,null,null,null,null,null,null,null,null,null,null,null,null,null,null,null,null,null,null,null,0]
[null,null,null,null,null,null,null,null,null,null,null,null,null,null,null,null,null,null,null,null,null,null,null,null,null,null,null,null,null,null,null,null,null,null,null,null,null,null,null,null,null,null,null,null,0]
[null,null,null,null,null,null,null,null,null,null,null,null,null,null,null,null,null,null,null,null,null,null,null,null,null,null,null,null,null,null,null,null,null,null,null,null,null,null,null,null,null,null,null,null,0]
[null,null,null,null,null,null,null,null,null,null,null,null,null,null,null,null,null,null,null,null,null,null,null,null,null,null,null,null,null,null,null,null,null,null,null,null,null,null,null,null,null,null,null,null,0]
[null,null,null,null,null,null,null,null,null,null,null,null,null,null,null,null,null,null,null,null,null,null,null,null,null,null,null,null,null,null,null,null,null,null,null,null,null,null,null,null,null,null,null,null,0]
[null,null,null,null,null,null,null,null,null,null,null,null,null,null,null,null,null,null,null,null,null,null,null,null,null,null,null,null,null,null,null,null,null,null,null,null,null,null,null,null,null,null,null,null,0]
[null,null,null,null,null,null,null,null,null,null,null,null,null,null,null,null,null,null,null,null,null,null,null,null,null,null,null,null,null,null,null,null,null,null,null,null,null,null,null,null,null,null,null,null,1]
[null,null,null,null,null,null,null,null,null,null,null,null,null,null,null,null,null,null,null,null,null,null,null,null,null,null,null,null,null,null,null,null,null,null,null,null,null,null,null,null,null,null,null,null,0]
[null,null,null,null,null,null,null,null,null,null,null,null,null,null,null,null,null,null,null,null,null,null,null,null,null,null,null,null,null,null,null,null,null,null,null,null,null,null,null,null,null,null,null,null,0]
[null,null,null,null,null,null,null,null,null,null,null,null,null,null,null,null,null,null,null,null,null,null,null,null,null,null,null,null,null,null,null,null,null,null,null,null,null,null,null,null,null,null,null,null,0]
[null,null,null,null,null,null,null,null,null,null,null,null,null,null,null,null,null,null,null,null,null,null,null,null,null,null,null,null,null,null,null,null,null,null,null,null,null,null,null,null,null,null,null,null,0]
[null,null,null,null,null,null,null,null,null,null,null,null,null,null,null,null,null,null,null,null,null,null,null,null,null,null,null,null,null,null,null,null,null,null,null,null,null,null,null,null,null,null,null,null,0]
[null,null,null,null,null,null,null,null,null,null,null,null,null,null,null,null,null,null,null,null,null,null,null,null,null,null,null,null,null,null,null,null,null,null,null,null,null,null,null,null,null,null,null,null,0]
[null,null,null,null,null,null,null,null,null,null,null,null,null,null,null,null,null,null,null,null,null,null,null,null,null,null,null,null,null,null,null,null,null,null,null,null,null,null,null,null,null,null,null,null,1]
[null,null,null,null,null,null,null,null,null,null,null,null,null,null,null,null,null,null,null,null,null,null,null,null,null,null,null,null,null,null,null,null,null,null,null,null,null,null,null,null,null,null,null,null,0]
[null,null,null,null,null,null,null,null,null,null,null,null,null,null,null,null,null,null,null,null,null,null,null,null,null,null,null,null,null,null,null,null,null,null,null,null,null,null,null,null,null,null,null,null,0]
[null,null,null,null,null,null,null,null,null,null,null,null,null,null,null,null,null,null,null,null,null,null,null,null,null,null,null,null,null,null,null,null,null,null,null,null,null,null,null,null,null,null,null,null,0]
[null,null,null,null,null,null,null,null,null,null,null,null,null,null,null,null,null,null,null,null,null,null,null,null,null,null,null,null,null,null,null,null,null,null,null,null,null,null,null,null,null,null,null,null,0]
[null,null,null,null,null,null,null,null,null,null,null,null,null,null,null,null,null,null,null,null,null,null,null,null,null,null,null,null,null,null,null,null,null,null,null,null,null,null,null,null,null,null,null,null,0]
[null,null,null,null,null,null,null,null,null,null,null,null,null,null,null,null,null,null,null,null,null,null,null,null,null,null,null,null,null,null,null,null,null,null,null,null,null,null,null,null,null,null,null,null,0]
[null,null,null,null,null,null,null,null,null,null,null,null,null,null,null,null,null,null,null,null,null,null,null,null,null,null,null,null,null,null,null,null,null,null,null,null,null,null,null,null,null,null,null,null,1]
[null,null,null,null,null,null,null,null,null,null,null,null,null,null,null,null,null,null,null,null,null,null,null,null,null,null,null,null,null,null,null,null,null,null,null,null,null,null,null,null,null,null,null,null,0]
[null,null,null,null,null,null,null,null,null,null,null,null,null,null,null,null,null,null,null,null,null,null,null,null,null,null,null,null,null,null,null,null,null,null,null,null,null,null,null,null,null,null,null,null,0]
[null,null,null,null,null,null,null,null,null,null,null,null,null,null,null,null,null,null,null,null,null,null,null,null,null,null,null,null,null,null,null,null,null,null,null,null,null,null,null,null,null,null,null,null,0]
[null,null,null,null,null,null,null,null,null,null,null,null,null,null,null,null,null,null,null,null,null,null,null,null,null,null,null,null,null,null,null,null,null,null,null,null,null,null,null,null,null,null,null,null,0]
[null,null,null,null,null,null,null,null,null,null,null,null,null,null,null,null,null,null,null,null,null,null,null,null,null,null,null,null,null,null,null,null,null,null,null,null,null,null,null,null,null,null,null,null,0]
[null,null,null,null,null,null,null,null,null,null,null,null,null,null,null,null,null,null,null,null,null,null,null,null,null,null,null,null,null,null,null,null,null,null,null,null,null,null,null,null,null,null,null,null,0]
[null,null,null,null,null,null,null,null,null,null,null,null,null,null,null,null,null,null,null,null,null,null,null,null,null,null,null,null,null,null,null,null,null,null,null,null,null,null,null,null,null,null,null,null,1]
[null,null,null,null,null,null,null,null,null,null,null,null,null,null,null,null,null,null,null,null,null,null,null,null,null,null,null,null,null,null,null,null,null,null,null,null,null,null,null,null,null,null,null,null,0]
[null,null,null,null,null,null,null,null,null,null,null,null,null,null,null,null,null,null,null,null,null,null,null,null,null,null,null,null,null,null,null,null,null,null,null,null,null,null,null,null,null,null,null,null,0]
[null,null,null,null,null,null,null,null,null,null,null,null,null,null,null,null,null,null,null,null,null,null,null,null,null,null,null,null,null,null,null,null,null,null,null,null,null,null,null,null,null,null,null,null,0]
[null,null,null,null,null,null,null,null,null,null,null,null,null,null,null,null,null,null,null,null,null,null,null,null,null,null,null,null,null,null,null,null,null,null,null,null,null,null,null,null,null,null,null,null,0]
[null,null,null,null,null,null,null,null,null,null,null,null,null,null,null,null,null,null,null,null,null,null,null,null,null,null,null,null,null,null,null,null,null,null,null,null,null,null,null,null,null,null,null,null,0]
[null,null,null,null,null,null,null,null,null,null,null,null,null,null,null,null,null,null,null,null,null,null,null,null,null,null,null,null,null,null,null,null,null,null,null,null,null,null,null,null,null,null,null,null,0]
[null,null,null,null,null,null,null,null,null,null,null,null,null,null,null,null,null,null,null,null,null,null,null,null,null,null,null,null,null,null,null,null,null,null,null,null,null,null,null,null,null,null,null,null,1]
[null,null,null,null,null,null,null,null,null,null,null,null,null,null,null,null,null,null,null,null,null,null,null,null,null,null,null,null,null,null,null,null,null,null,null,null,null,null,null,null,null,null,null,null,0]
[null,null,null,null,null,null,null,null,null,null,null,null,null,null,null,null,null,null,null,null,null,null,null,null,null,null,null,null,null,null,null,null,null,null,null,null,null,null,null,null,null,null,null,null,0]
[null,null,null,null,null,null,null,null,null,null,null,null,null,null,null,null,null,null,null,null,null,null,null,null,null,null,null,null,null,null,null,null,null,null,null,null,null,null,null,null,null,null,null,null,0]
[null,null,null,null,null,null,null,null,null,null,null,null,null,null,null,null,null,null,null,null,null,null,null,null,null,null,null,null,null,null,null,null,null,null,null,null,null,null,null,null,null,null,null,null,0]
[null,null,null,null,null,null,null,null,null,null,null,null,null,null,null,null,null,null,null,null,null,null,null,null,null,null,null,null,null,null,null,null,null,null,null,null,null,null,null,null,null,null,null,null,0]
[null,null,null,null,null,null,null,null,null,null,null,null,null,null,null,null,null,null,null,null,null,null,null,null,null,null,null,null,null,null,null,null,null,null,null,null,null,null,null,null,null,null,null,null,0]
[null,null,null,null,null,null,null,null,null,null,null,null,null,null,null,null,null,null,null,null,null,null,null,null,null,null,null,null,null,null,null,null,null,null,null,null,null,null,null,null,null,null,null,null,1]
[null,null,null,null,null,null,null,null,null,null,null,null,null,null,null,null,null,null,null,null,null,null,null,null,null,null,null,null,null,null,null,null,null,null,null,null,null,null,null,null,null,null,null,null,0]
[null,null,null,null,null,null,null,null,null,null,null,null,null,null,null,null,null,null,null,null,null,null,null,null,null,null,null,null,null,null,null,null,null,null,null,null,null,null,null,null,null,null,null,null,0]
[null,null,null,null,null,null,null,null,null,null,null,null,null,null,null,null,null,null,null,null,null,null,null,null,null,null,null,null,null,null,null,null,null,null,null,null,null,null,null,null,null,null,null,null,0]
[null,null,null,null,null,null,null,null,null,null,null,null,null,null,null,null,null,null,null,null,null,null,null,null,null,null,null,null,null,null,null,null,null,null,null,null,null,null,null,null,null,null,null,null,0]
[null,null,null,null,null,null,null,null,null,null,null,null,null,null,null,null,null,null,null,null,null,null,null,null,null,null,null,null,null,null,null,null,null,null,null,null,null,null,null,null,null,null,null,null,0]
[null,null,null,null,null,null,null,null,null,null,null,null,null,null,null,null,null,null,null,null,null,null,null,null,null,null,null,null,null,null,null,null,null,null,null,null,null,null,null,null,null,null,null,null,0]
[null,null,null,null,null,null,null,null,null,null,null,null,null,null,null,null,null,null,null,null,null,null,null,null,null,null,null,null,null,null,null,null,null,null,null,null,null,null,null,null,null,null,null,null,1]
[null,null,null,null,null,null,null,null,null,null,null,null,null,null,null,null,null,null,null,null,null,null,null,null,null,null,null,null,null,null,null,null,null,null,null,null,null,null,null,null,null,null,null,null,0]
[null,null,null,null,null,null,null,null,null,null,null,null,null,null,null,null,null,null,null,null,null,null,null,null,null,null,null,null,null,null,null,null,null,null,null,null,null,null,null,null,null,null,null,null,0]
[null,null,null,null,null,null,null,null,null,null,null,null,null,null,null,null,null,null,null,null,null,null,null,null,null,null,null,null,null,null,null,null,null,null,null,null,null,null,null,null,null,null,null,null,0]
[null,null,null,null,null,null,null,null,null,null,null,null,null,null,null,null,null,null,null,null,null,null,null,null,null,null,null,null,null,null,null,null,null,null,null,null,null,null,null,null,null,null,null,null,0]
[null,null,null,null,null,null,null,null,null,null,null,null,null,null,null,null,null,null,null,null,null,null,null,null,null,null,null,null,null,null,null,null,null,null,null,null,null,null,null,null,null,null,null,null,0]
[null,null,null,null,null,null,null,null,null,null,null,null,null,null,null,null,null,null,null,null,null,null,null,null,null,null,null,null,null,null,null,null,null,null,null,null,null,null,null,null,null,null,null,null,0]
[null,null,null,null,null,null,null,null,null,null,null,null,null,null,null,null,null,null,null,null,null,null,null,null,null,null,null,null,null,null,null,null,null,null,null,null,null,null,null,null,null,null,null,null,1]
[null,null,null,null,null,null,null,null,null,null,null,null,null,null,null,null,null,null,null,null,null,null,null,null,null,null,null,null,null,null,null,null,null,null,null,null,null,null,null,null,null,null,null,null,0]
[null,null,null,null,null,null,null,null,null,null,null,null,null,null,null,null,null,null,null,null,null,null,null,null,null,null,null,null,null,null,null,null,null,null,null,null,null,null,null,null,null,null,null,null,0]
[null,null,null,null,null,null,null,null,null,null,null,null,null,null,null,null,null,null,null,null,null,null,null,null,null,null,null,null,null,null,null,null,null,null,null,null,null,null,null,null,null,null,null,null,0]
[null,null,null,null,null,null,null,null,null,null,null,null,null,null,null,null,null,null,null,null,null,null,null,null,null,null,null,null,null,null,null,null,null,null,null,null,null,null,null,null,null,null,null,null,0]
[null,null,null,null,null,null,null,null,null,null,null,null,null,null,null,null,null,null,null,null,null,null,null,null,null,null,null,null,null,null,null,null,null,null,null,null,null,null,null,null,null,null,null,null,0]
[null,null,null,null,null,null,null,null,null,null,null,null,null,null,null,null,null,null,null,null,null,null,null,null,null,null,null,null,null,null,null,null,null,null,null,null,null,null,null,null,null,null,null,null,0]
[null,null,null,null,null,null,null,null,null,null,null,null,null,null,null,null,null,null,null,null,null,null,null,null,null,null,null,null,null,null,null,null,null,null,null,null,null,null,null,null,null,null,null,null,1]
[null,null,null,null,null,null,null,null,null,null,null,null,null,null,null,null,null,null,null,null,null,null,null,null,null,null,null,null,null,null,null,null,null,null,null,null,null,null,null,null,null,null,null,null,0]
[null,null,null,null,null,null,null,null,null,null,null,null,null,null,null,null,null,null,null,null,null,null,null,null,null,null,null,null,null,null,null,null,null,null,null,null,null,null,null,null,null,null,null,null,0]
[null,null,null,null,null,null,null,null,null,null,null,null,null,null,null,null,null,null,null,null,null,null,null,null,null,null,null,null,null,null,null,null,null,null,null,null,null,null,null,null,null,null,null,null,0]
[null,null,null,null,null,null,null,null,null,null,null,null,null,null,null,null,null,null,null,null,null,null,null,null,null,null,null,null,null,null,null,null,null,null,null,null,null,null,null,null,null,null,null,null,0]
[null,null,null,null,null,null,null,null,null,null,null,null,null,null,null,null,null,null,null,null,null,null,null,null,null,null,null,null,null,null,null,null,null,null,null,null,null,null,null,null,null,null,null,null,0]
[null,null,null,null,null,null,null,null,null,null,null,null,null,null,null,null,null,null,null,null,null,null,null,null,null,null,null,null,null,null,null,null,null,null,null,null,null,null,null,null,null,null,null,null,0]
[null,null,null,null,null,null,null,null,null,null,null,null,null,null,null,null,null,null,null,null,null,null,null,null,null,null,null,null,null,null,null,null,null,null,null,null,null,null,null,null,null,null,null,null,1]
[null,null,null,null,null,null,null,null,null,null,null,null,null,null,null,null,null,null,null,null,null,null,null,null,null,null,null,null,null,null,null,null,null,null,null,null,null,null,null,null,null,null,null,null,0]
[null,null,null,null,null,null,null,null,null,null,null,null,null,null,null,null,null,null,null,null,null,null,null,null,null,null,null,null,null,null,null,null,null,null,null,null,null,null,null,null,null,null,null,null,0]
[null,null,null,null,null,null,null,null,null,null,null,null,null,null,null,null,null,null,null,null,null,null,null,null,null,null,null,null,null,null,null,null,null,null,null,null,null,null,null,null,null,null,null,null,0]
[null,null,null,null,null,null,null,null,null,null,null,null,null,null,null,null,null,null,null,null,null,null,null,null,null,null,null,null,null,null,null,null,null,null,null,null,null,null,null,null,null,null,null,null,0]
[null,null,null,null,null,null,null,null,null,null,null,null,null,null,null,null,null,null,null,null,null,null,null,null,null,null,null,null,null,null,null,null,null,null,null,null,null,null,null,null,null,null,null,null,0]
[null,null,null,null,null,null,null,null,null,null,null,null,null,null,null,null,null,null,null,null,null,null,null,null,null,null,null,null,null,null,null,null,null,null,null,null,null,null,null,null,null,null,null,null,0]
[null,null,null,null,null,null,null,null,null,null,null,null,null,null,null,null,null,null,null,null,null,null,null,null,null,null,null,null,null,null,null,null,null,null,null,null,null,null,null,null,null,null,null,null,1]
[null,null,null,null,null,null,null,null,null,null,null,null,null,null,null,null,null,null,null,null,null,null,null,null,null,null,null,null,null,null,null,null,null,null,null,null,null,null,null,null,null,null,null,null,0]
[null,null,null,null,null,null,null,null,null,null,null,null,null,null,null,null,null,null,null,null,null,null,null,null,null,null,null,null,null,null,null,null,null,null,null,null,null,null,null,null,null,null,null,null,0]
[null,null,null,null,null,null,null,null,null,null,null,null,null,null,null,null,null,null,null,null,null,null,null,null,null,null,null,null,null,null,null,null,null,null,null,null,null,null,null,null,null,null,null,null,0]
[null,null,null,null,null,null,null,null,null,null,null,null,null,null,null,null,null,null,null,null,null,null,null,null,null,null,null,null,null,null,null,null,null,null,null,null,null,null,null,null,null,null,null,null,0]
[null,null,null,null,null,null,null,null,null,null,null,null,null,null,null,null,null,null,null,null,null,null,null,null,null,null,null,null,null,null,null,null,null,null,null,null,null,null,null,null,null,null,null,null,0]
[null,null,null,null,null,null,null,null,null,null,null,null,null,null,null,null,null,null,null,null,null,null,null,null,null,null,null,null,null,null,null,null,null,null,null,null,null,null,null,null,null,null,null,null,0]
[null,null,null,null,null,null,null,null,null,null,null,null,null,null,null,null,null,null,null,null,null,null,null,null,null,null,null,null,null,null,null,null,null,null,null,null,null,null,null,null,null,null,null,null,1]
[null,null,null,null,null,null,null,null,null,null,null,null,null,null,null,null,null,null,null,null,null,null,null,null,null,null,null,null,null,null,null,null,null,null,null,null,null,null,null,null,null,null,null,null,0]
[null,null,null,null,null,null,null,null,null,null,null,null,null,null,null,null,null,null,null,null,null,null,null,null,null,null,null,null,null,null,null,null,null,null,null,null,null,null,null,null,null,null,null,null,0]
[null,null,null,null,null,null,null,null,null,null,null,null,null,null,null,null,null,null,null,null,null,null,null,null,null,null,null,null,null,null,null,null,null,null,null,null,null,null,null,null,null,null,null,null,0]
[null,null,null,null,null,null,null,null,null,null,null,null,null,null,null,null,null,null,null,null,null,null,null,null,null,null,null,null,null,null,null,null,null,null,null,null,null,null,null,null,null,null,null,null,0]
[null,null,null,null,null,null,null,null,null,null,null,null,null,null,null,null,null,null,null,null,null,null,null,null,null,null,null,null,null,null,null,null,null,null,null,null,null,null,null,null,null,null,null,null,0]
[null,null,null,null,null,null,null,null,null,null,null,null,null,null,null,null,null,null,null,null,null,null,null,null,null,null,null,null,null,null,null,null,null,null,null,null,null,null,null,null,null,null,null,null,0]
[null,null,null,null,null,null,null,null,null,null,null,null,null,null,null,null,null,null,null,null,null,null,null,null,null,null,null,null,null,null,null,null,null,null,null,null,null,null,null,null,null,null,null,null,1]
[null,null,null,null,null,null,null,null,null,null,null,null,null,null,null,null,null,null,null,null,null,null,null,null,null,null,null,null,null,null,null,null,null,null,null,null,null,null,null,null,null,null,null,null,0]
[null,null,null,null,null,null,null,null,null,null,null,null,null,null,null,null,null,null,null,null,null,null,null,null,null,null,null,null,null,null,null,null,null,null,null,null,null,null,null,null,null,null,null,null,0]
[null,null,null,null,null,null,null,null,null,null,null,null,null,null,null,null,null,null,null,null,null,null,null,null,null,null,null,null,null,null,null,null,null,null,null,null,null,null,null,null,null,null,null,null,0]
[null,null,null,null,null,null,null,null,null,null,null,null,null,null,null,null,null,null,null,null,null,null,null,null,null,null,null,null,null,null,null,null,null,null,null,null,null,null,null,null,null,null,null,null,0]
[null,null,null,null,null,null,null,null,null,null,null,null,null,null,null,null,null,null,null,null,null,null,null,null,null,null,null,null,null,null,null,null,null,null,null,null,null,null,null,null,null,null,null,null,0]
[null,null,null,null,null,null,null,null,null,null,null,null,null,null,null,null,null,null,null,null,null,null,null,null,null,null,null,null,null,null,null,null,null,null,null,null,null,null,null,null,null,null,null,null,0]
[null,null,null,null,null,null,null,null,null,null,null,null,null,null,null,null,null,null,null,null,null,null,null,null,null,null,null,null,null,null,null,null,null,null,null,null,null,null,null,null,null,null,null,null,1]
[null,null,null,null,null,null,null,null,null,null,null,null,null,null,null,null,null,null,null,null,null,null,null,null,null,null,null,null,null,null,null,null,null,null,null,null,null,null,null,null,null,null,null,null,0]
[null,null,null,null,null,null,null,null,null,null,null,null,null,null,null,null,null,null,null,null,null,null,null,null,null,null,null,null,null,null,null,null,null,null,null,null,null,null,null,null,null,null,null,null,0]
[null,null,null,null,null,null,null,null,null,null,null,null,null,null,null,null,null,null,null,null,null,null,null,null,null,null,null,null,null,null,null,null,null,null,null,null,null,null,null,null,null,null,null,null,0]
[null,null,null,null,null,null,null,null,null,null,null,null,null,null,null,null,null,null,null,null,null,null,null,null,null,null,null,null,null,null,null,null,null,null,null,null,null,null,null,null,null,null,null,null,0]
[null,null,null,null,null,null,null,null,null,null,null,null,null,null,null,null,null,null,null,null,null,null,null,null,null,null,null,null,null,null,null,null,null,null,null,null,null,null,null,null,null,null,null,null,0]
[null,null,null,null,null,null,null,null,null,null,null,null,null,null,null,null,null,null,null,null,null,null,null,null,null,null,null,null,null,null,null,null,null,null,null,null,null,null,null,null,null,null,null,null,0]
[null,null,null,null,null,null,null,null,null,null,null,null,null,null,null,null,null,null,null,null,null,null,null,null,null,null,null,null,null,null,null,null,null,null,null,null,null,null,null,null,null,null,null,null,1]
[null,null,null,null,null,null,null,null,null,null,null,null,null,null,null,null,null,null,null,null,null,null,null,null,null,null,null,null,null,null,null,null,null,null,null,null,null,null,null,null,null,null,null,null,0]
[null,null,null,null,null,null,null,null,null,null,null,null,null,null,null,null,null,null,null,null,null,null,null,null,null,null,null,null,null,null,null,null,null,null,null,null,null,null,null,null,null,null,null,null,0]
[null,null,null,null,null,null,null,null,null,null,null,null,null,null,null,null,null,null,null,null,null,null,null,null,null,null,null,null,null,null,null,null,null,null,null,null,null,null,null,null,null,null,null,null,0]
[null,null,null,null,null,null,null,null,null,null,null,null,null,null,null,null,null,null,null,null,null,null,null,null,null,null,null,null,null,null,null,null,null,null,null,null,null,null,null,null,null,null,null,null,0]
[null,null,null,null,null,null,null,null,null,null,null,null,null,null,null,null,null,null,null,null,null,null,null,null,null,null,null,null,null,null,null,null,null,null,null,null,null,null,null,null,null,null,null,null,0]
[null,null,null,null,null,null,null,null,null,null,null,null,null,null,null,null,null,null,null,null,null,null,null,null,null,null,null,null,null,null,null,null,null,null,null,null,null,null,null,null,null,null,null,null,0]
[null,null,null,null,null,null,null,null,null,null,null,null,null,null,null,null,null,null,null,null,null,null,null,null,null,null,null,null,null,null,null,null,null,null,null,null,null,null,null,null,null,null,null,null,1]
[null,null,null,null,null,null,null,null,null,null,null,null,null,null,null,null,null,null,null,null,null,null,null,null,null,null,null,null,null,null,null,null,null,null,null,null,null,null,null,null,null,null,null,null,0]
[null,null,null,null,null,null,null,null,null,null,null,null,null,null,null,null,null,null,null,null,null,null,null,null,null,null,null,null,null,null,null,null,null,null,null,null,null,null,null,null,null,null,null,null,0]
[null,null,null,null,null,null,null,null,null,null,null,null,null,null,null,null,null,null,null,null,null,null,null,null,null,null,null,null,null,null,null,null,null,null,null,null,null,null,null,null,null,null,null,null,0]
[null,null,null,null,null,null,null,null,null,null,null,null,null,null,null,null,null,null,null,null,null,null,null,null,null,null,null,null,null,null,null,null,null,null,null,null,null,null,null,null,null,null,null,null,0]
[null,null,null,null,null,null,null,null,null,null,null,null,null,null,null,null,null,null,null,null,null,null,null,null,null,null,null,null,null,null,null,null,null,null,null,null,null,null,null,null,null,null,null,null,0]
[null,null,null,null,null,null,null,null,null,null,null,null,null,null,null,null,null,null,null,null,null,null,null,null,null,null,null,null,null,null,null,null,null,null,null,null,null,null,null,null,null,null,null,null,0]
[null,null,null,null,null,null,null,null,null,null,null,null,null,null,null,null,null,null,null,null,null,null,null,null,null,null,null,null,null,null,null,null,null,null,null,null,null,null,null,null,null,null,null,null,1]
[null,null,null,null,null,null,null,null,null,null,null,null,null,null,null,null,null,null,null,null,null,null,null,null,null,null,null,null,null,null,null,null,null,null,null,null,null,null,null,null,null,null,null,null,0]
[null,null,null,null,null,null,null,null,null,null,null,null,null,null,null,null,null,null,null,null,null,null,null,null,null,null,null,null,null,null,null,null,null,null,null,null,null,null,null,null,null,null,null,null,0]
[null,null,null,null,null,null,null,null,null,null,null,null,null,null,null,null,null,null,null,null,null,null,null,null,null,null,null,null,null,null,null,null,null,null,null,null,null,null,null,null,null,null,null,null,0]
[null,null,null,null,null,null,null,null,null,null,null,null,null,null,null,null,null,null,null,null,null,null,null,null,null,null,null,null,null,null,null,null,null,null,null,null,null,null,null,null,null,null,null,null,0]
[null,null,null,null,null,null,null,null,null,null,null,null,null,null,null,null,null,null,null,null,null,null,null,null,null,null,null,null,null,null,null,null,null,null,null,null,null,null,null,null,null,null,null,null,0]
[null,null,null,null,null,null,null,null,null,null,null,null,null,null,null,null,null,null,null,null,null,null,null,null,null,null,null,null,null,null,null,null,null,null,null,null,null,null,null,null,null,null,null,null,0]
[null,null,null,null,null,null,null,null,null,null,null,null,null,null,null,null,null,null,null,null,null,null,null,null,null,null,null,null,null,null,null,null,null,null,null,null,null,null,null,null,null,null,null,null,1]
[null,null,null,null,null,null,null,null,null,null,null,null,null,null,null,null,null,null,null,null,null,null,null,null,null,null,null,null,null,null,null,null,null,null,null,null,null,null,null,null,null,null,null,null,0]
[null,null,null,null,null,null,null,null,null,null,null,null,null,null,null,null,null,null,null,null,null,null,null,null,null,null,null,null,null,null,null,null,null,null,null,null,null,null,null,null,null,null,null,null,0]
[null,null,null,null,null,null,null,null,null,null,null,null,null,null,null,null,null,null,null,null,null,null,null,null,null,null,null,null,null,null,null,null,null,null,null,null,null,null,null,null,null,null,null,null,0]
[null,null,null,null,null,null,null,null,null,null,null,null,null,null,null,null,null,null,null,null,null,null,null,null,null,null,null,null,null,null,null,null,null,null,null,null,null,null,null,null,null,null,null,null,0]
[null,null,null,null,null,null,null,null,null,null,null,null,null,null,null,null,null,null,null,null,null,null,null,null,null,null,null,null,null,null,null,null,null,null,null,null,null,null,null,null,null,null,null,null,0]
[null,null,null,null,null,null,null,null,null,null,null,null,null,null,null,null,null,null,null,null,null,null,null,null,null,null,null,null,null,null,null,null,null,null,null,null,null,null,null,null,null,null,null,null,0]
[null,null,null,null,null,null,null,null,null,null,null,null,null,null,null,null,null,null,null,null,null,null,null,null,null,null,null,null,null,null,null,null,null,null,null,null,null,null,null,null,null,null,null,null,1]
[null,null,null,null,null,null,null,null,null,null,null,null,null,null,null,null,null,null,null,null,null,null,null,null,null,null,null,null,null,null,null,null,null,null,null,null,null,null,null,null,null,null,null,null,0]
[null,null,null,null,null,null,null,null,null,null,null,null,null,null,null,null,null,null,null,null,null,null,null,null,null,null,null,null,null,null,null,null,null,null,null,null,null,null,null,null,null,null,null,null,0]
[null,null,null,null,null,null,null,null,null,null,null,null,null,null,null,null,null,null,null,null,null,null,null,null,null,null,null,null,null,null,null,null,null,null,null,null,null,null,null,null,null,null,null,null,0]
[null,null,null,null,null,null,null,null,null,null,null,null,null,null,null,null,null,null,null,null,null,null,null,null,null,null,null,null,null,null,null,null,null,null,null,null,null,null,null,null,null,null,null,null,0]
[null,null,null,null,null,null,null,null,null,null,null,null,null,null,null,null,null,null,null,null,null,null,null,null,null,null,null,null,null,null,null,null,null,null,null,null,null,null,null,null,null,null,null,null,0]
[null,null,null,null,null,null,null,null,null,null,null,null,null,null,null,null,null,null,null,null,null,null,null,null,null,null,null,null,null,null,null,null,null,null,null,null,null,null,null,null,null,null,null,null,0]
[null,null,null,null,null,null,null,null,null,null,null,null,null,null,null,null,null,null,null,null,null,null,null,null,null,null,null,null,null,null,null,null,null,null,null,null,null,null,null,null,null,null,null,null,1]
[null,null,null,null,null,null,null,null,null,null,null,null,null,null,null,null,null,null,null,null,null,null,null,null,null,null,null,null,null,null,null,null,null,null,null,null,null,null,null,null,null,null,null,null,0]
[null,null,null,null,null,null,null,null,null,null,null,null,null,null,null,null,null,null,null,null,null,null,null,null,null,null,null,null,null,null,null,null,null,null,null,null,null,null,null,null,null,null,null,null,0]
[null,null,null,null,null,null,null,null,null,null,null,null,null,null,null,null,null,null,null,null,null,null,null,null,null,null,null,null,null,null,null,null,null,null,null,null,null,null,null,null,null,null,null,null,0]
[null,null,null,null,null,null,null,null,null,null,null,null,null,null,null,null,null,null,null,null,null,null,null,null,null,null,null,null,null,null,null,null,null,null,null,null,null,null,null,null,null,null,null,null,0]
[null,null,null,null,null,null,null,null,null,null,null,null,null,null,null,null,null,null,null,null,null,null,null,null,null,null,null,null,null,null,null,null,null,null,null,null,null,null,null,null,null,null,null,null,0]
[null,null,null,null,null,null,null,null,null,null,null,null,null,null,null,null,null,null,null,null,null,null,null,null,null,null,null,null,null,null,null,null,null,null,null,null,null,null,null,null,null,null,null,null,0]
[null,null,null,null,null,null,null,null,null,null,null,null,null,null,null,null,null,null,null,null,null,null,null,null,null,null,null,null,null,null,null,null,null,null,null,null,null,null,null,null,null,null,null,null,1]
[null,null,null,null,null,null,null,null,null,null,null,null,null,null,null,null,null,null,null,null,null,null,null,null,null,null,null,null,null,null,null,null,null,null,null,null,null,null,null,null,null,null,null,null,0]
[null,null,null,null,null,null,null,null,null,null,null,null,null,null,null,null,null,null,null,null,null,null,null,null,null,null,null,null,null,null,null,null,null,null,null,null,null,null,null,null,null,null,null,null,0]
[null,null,null,null,null,null,null,null,null,null,null,null,null,null,null,null,null,null,null,null,null,null,null,null,null,null,null,null,null,null,null,null,null,null,null,null,null,null,null,null,null,null,null,null,0]
[null,null,null,null,null,null,null,null,null,null,null,null,null,null,null,null,null,null,null,null,null,null,null,null,null,null,null,null,null,null,null,null,null,null,null,null,null,null,null,null,null,null,null,null,0]
[null,null,null,null,null,null,null,null,null,null,null,null,null,null,null,null,null,null,null,null,null,null,null,null,null,null,null,null,null,null,null,null,null,null,null,null,null,null,null,null,null,null,null,null,0]
[null,null,null,null,null,null,null,null,null,null,null,null,null,null,null,null,null,null,null,null,null,null,null,null,null,null,null,null,null,null,null,null,null,null,null,null,null,null,null,null,null,null,null,null,0]
[null,null,null,null,null,null,null,null,null,null,null,null,null,null,null,null,null,null,null,null,null,null,null,null,null,null,null,null,null,null,null,null,null,null,null,null,null,null,null,null,null,null,null,null,1]
[null,null,null,null,null,null,null,null,null,null,null,null,null,null,null,null,null,null,null,null,null,null,null,null,null,null,null,null,null,null,null,null,null,null,null,null,null,null,null,null,null,null,null,null,0]
[null,null,null,null,null,null,null,null,null,null,null,null,null,null,null,null,null,null,null,null,null,null,null,null,null,null,null,null,null,null,null,null,null,null,null,null,null,null,null,null,null,null,null,null,0]
[null,null,null,null,null,null,null,null,null,null,null,null,null,null,null,null,null,null,null,null,null,null,null,null,null,null,null,null,null,null,null,null,null,null,null,null,null,null,null,null,null,null,null,null,0]
[null,null,null,null,null,null,null,null,null,null,null,null,null,null,null,null,null,null,null,null,null,null,null,null,null,null,null,null,null,null,null,null,null,null,null,null,null,null,null,null,null,null,null,null,0]
[null,null,null,null,null,null,null,null,null,null,null,null,null,null,null,null,null,null,null,null,null,null,null,null,null,null,null,null,null,null,null,null,null,null,null,null,null,null,null,null,null,null,null,null,0]
[null,null,null,null,null,null,null,null,null,null,null,null,null,null,null,null,null,null,null,null,null,null,null,null,null,null,null,null,null,null,null,null,null,null,null,null,null,null,null,null,null,null,null,null,0]
[null,null,null,null,null,null,null,null,null,null,null,null,null,null,null,null,null,null,null,null,null,null,null,null,null,null,null,null,null,null,null,null,null,null,null,null,null,null,null,null,null,null,null,null,1]
[null,null,null,null,null,null,null,null,null,null,null,null,null,null,null,null,null,null,null,null,null,null,null,null,null,null,null,null,null,null,null,null,null,null,null,null,null,null,null,null,null,null,null,null,0]
[null,null,null,null,null,null,null,null,null,null,null,null,null,null,null,null,null,null,null,null,null,null,null,null,null,null,null,null,null,null,null,null,null,null,null,null,null,null,null,null,null,null,null,null,0]
[null,null,null,null,null,null,null,null,null,null,null,null,null,null,null,null,null,null,null,null,null,null,null,null,null,null,null,null,null,null,null,null,null,null,null,null,null,null,null,null,null,null,null,null,0]
[null,null,null,null,null,null,null,null,null,null,null,null,null,null,null,null,null,null,null,null,null,null,null,null,null,null,null,null,null,null,null,null,null,null,null,null,null,null,null,null,null,null,null,null,0]
[null,null,null,null,null,null,null,null,null,null,null,null,null,null,null,null,null,null,null,null,null,null,null,null,null,null,null,null,null,null,null,null,null,null,null,null,null,null,null,null,null,null,null,null,0]
[null,null,null,null,null,null,null,null,null,null,null,null,null,null,null,null,null,null,null,null,null,null,null,null,null,null,null,null,null,null,null,null,null,null,null,null,null,null,null,null,null,null,null,null,0]
[null,null,null,null,null,null,null,null,null,null,null,null,null,null,null,null,null,null,null,null,null,null,null,null,null,null,null,null,null,null,null,null,null,null,null,null,null,null,null,null,null,null,null,null,1]

{"sheet":"Juin","index":1,"n_rows":0,"n_cols":0,"rows_kept":0,"cut":false,"hidden":false,"merged":[]}

{"sheet":"Juillet","index":2,"n_rows":0,"n_cols":0,"rows_kept":0,"cut":false,"hidden":false,"merged":[]}

{"sheet":"Août","index":3,"n_rows":65,"n_cols":11,"rows_kept":65,"cut":false,"hidden":false,"merged":[[64,10,65,10],[62,6,63,6],[62,7,63,7],[62,8,63,8],[62,9,63,9],[62,10,63,10],[64,0,65,5],[64,6,65,6],[64,7,65,7],[64,8,65,8],[64,9,65,9],[58,10,59,10],[60,0,63,0],[60,1,61,1],[60,2,61,2],[60,3,61,3],[60,4,61,4],[60,5,61,5],[46,0,59,0],[46,1,47,1],[46,2,47,2],[46,3,47,3],[46,4,47,4],[60,6,61,6],[60,7,61,7],[60,8,61,8],[60,9,61,9],[60,10,61,10],[62,1,63,1],[62,2,63,2],[62,3,63,3],[62,4,63,4],[62,5,63,5],[58,1,59,1],[58,2,59,2],[58,3,59,3],[58,4,59,4],[58,5,59,5],[58,6,59,6],[58,7,59,7],[58,8,59,8],[58,9,59,9],[54,10,55,10],[56,1,57,1],[56,2,57,2],[56,3,57,3],[56,4,57,4],[56,5,57,5],[56,6,57,6],[56,7,57,7],[56,8,57,8],[56,9,57,9],[56,10,57,10],[54,1,55,1],[54,2,55,2],[54,3,55,3],[54,4,55,4],[54,5,55,5],[54,6,55,6],[54,7,55,7],[54,8,55,8],[54,9,55,9],[50,7,51,7],[50,8,51,8],[50,9,51,9],[50,10,51,10],[52,1,53,1],[52,2,53,2],[52,3,53,3],[52,4,53,4],[52,5,53,5],[52,6,53,6],[52,7,53,7],[52,8,53,8],[52,9,53,9],[52,10,53,10],[50,1,51,1],[50,2,51,2],[50,3,51,3],[50,4,51,4],[50,5,51,5],[50,6,51,6],[48,1,49,1],[48,2,49,2],[48,3,49,3],[48,4,49,4],[48,5,49,5],[48,6,49,6],[46,9,47,9],[46,10,47,10],[44,6,45,6],[44,7,45,7],[44,8,45,8],[44,9,45,9],[44,10,45,10],[48,7,49,7],[48,8,49,8],[48,9,49,9],[48,10,49,10],[44,1,45,1],[44,2,45,2],[44,3,45,3],[44,4,45,4],[44,5,45,5],[46,5,47,5],[46,6,47,6],[46,7,47,7],[46,8,47,8],[40,10,41,10],[42,1,43,1],[42,2,43,2],[42,3,43,3],[42,4,43,4],[42,5,43,5],[42,6,43,6],[42,7,43,7],[42,8,43,8],[42,9,43,9],[42,10,43,10],[40,1,41,1],[40,2,41,2],[40,3,41,3],[40,4,41,4],[40,5,41,5],[40,6,41,6],[40,7,41,7],[40,8,41,8],[40,9,41,9],[36,3,37,3],[36,4,37,4],[36,5,37,5],[36,6,37,6],[36,7,37,7],[36,8,37,8],[36,9,37,9],[36,10,37,10],[38,1,39,1],[38,2,39,2],[38,3,39,3],[38,4,39,4],[38,5,39,5],[38,6,39,6],[38,7,39,7],[38,8,39,8],[38,9,39,9],[38,10,39,10],[30,10,31,10],[32,0,45,0],[32,1,33,1],[32,2,33,2],[32,3,33,3],[32,4,33,4],[32,5,33,5],[32,6,33,6],[32,7,33,7],[32,8,33,8],[32,9,33,9],[32,10,33,10],[34,1,35,1],[34,2,35,2],[34,3,35,3],[34,4,35,4],[34,5,35,5],[34,6,35,6],[34,7,35,7],[34,8,35,8],[34,9,35,9],[34,10,35,10],[36,1,37,1],[36,2,37,2],[30,1,31,1],[30,2,31,2],[30,3,31,3],[30,4,31,4],[30,5,31,5],[30,6,31,6],[30,7,31,7],[30,8,31,8],[30,9,31,9],[26,10,27,10],[28,1,29,1],[28,2,29,2],[28,3,29,3],[28,4,29,4],[28,5,29,5],[28,6,29,6],[28,7,29,7],[28,8,29,8],[28,9,29,9],[28,10,29,10],[26,1,27,1],[26,2,27,2],[26,3,27,3],[26,4,27,4],[26,5,27,5],[26,6,27,6],[26,7,27,7],[26,8,27,8],[26,9,27,9],[22,3,23,3],[22,4,23,4],[22,5,23,5],[22,6,23,6],[22,7,23,7],[22,8,23,8],[22,9,23,9],[22,10,23,10],[24,1,25,1],[24,2,25,2],[24,3,25,3],[24,4,25,4],[24,5,25,5],[24,6,25,6],[24,7,25,7],[24,8,25,8],[24,9,25,9],[24,10,25,10],[16,10,17,10],[18,0,31,0],[18,1,19,1],[18,2,19,2],[18,3,19,3],[18,4,19,4],[18,5,19,5],[18,6,19,6],[18,7,19,7],[18,8,19,8],[18,9,19,9],[18,10,19,10],[20,1,21,1],[20,2,21,2],[20,3,21,3],[20,4,21,4],[20,5,21,5],[20,6,21,6],[20,7,21,7],[20,8,21,8],[20,9,21,9],[20,10,21,10],[22,1,23,1],[22,2,23,2],[16,1,17,1],[16,2,17,2],[16,3,17,3],[16,4,17,4],[16,5,17,5],[16,6,17,6],[16,7,17,7],[16,8,17,8],[16,9,17,9],[12,8,13,8],[12,9,13,9],[12,10,13,10],[14,1,15,1],[14,2,15,2],[14,3,15,3],[14,4,15,4],[14,5,15,5],[14,6,15,6],[14,7,15,7],[14,8,15,8],[14,9,15,9],[14,10,15,10],[8,9,9,9],[8,10,9,10],[10,1,11,1],[10,2,11,2],[10,3,11,3],[10,4,11,4],[10,5,11,5],[10,6,11,6],[10,7,11,7],[10,8,11,8],[10,9,11,9],[10,10,11,10],[4,9,5,9],[4,10,5,10],[6,1,7,1],[6,2,7,2],[6,3,7,3],[6,4,7,4],[6,5,7,5],[6,6,7,6],[6,7,7,7],[6,8,7,8],[6,9,7,9],[6,10,7,10],[4,0,17,0],[4,1,5,1],[4,2,5,2],[4,3,5,3],[4,4,5,4],[4,5,5,5],[4,6,5,6],[4,7,5,7],[4,8,5,8],[8,1,9,1],[8,2,9,2],[8,3,9,3],[8,4,9,4],[8,5,9,5],[8,6,9,6],[8,7,9,7],[8,8,9,8],[12,1,13,1],[12,2,13,2],[12,3,13,3],[12,4,13,4],[12,5,13,5],[12,6,13,6],[12,7,13,7],[0,0,0,10],[2,0,3,0],[2,1,3,1],[2,2,3,2],[2,3,3,3],[2,4,3,4],[2,5,3,5],[2,6,3,6],[2,7,3,7],[2,8,3,8],[2,9,3,9],[2,10,3,10]]}
["AOUT 2021"]
["semaine",null,null,null,null,null,"sam/dim","férier","congés","forfait","repos"]
[30,"D",1]
[]
[31,"LUN",2]
[]
[null,"MAR",3]
[]
[null,"MER",4]
[]
[null,"JEU",5]
[]
[null,"VEN",6]
[]
[null,"SAM",7]
[]
[null,"D",8]
[]
[32,"LUN",9]
[]
[null,"MAR",10]
[]
[null,"MER",11]
[]
[null,"JEU",12]
[]
[null,"VEN",13]
[]
[null,"SAM",14]
[]
[null,"D",15]
[]
[33,"LUN",16]
[]
[null,"MAR",17]
[]
[null,"MER",18]
[]
[null,"JEU",19]
[]
[null,"VEN",20]
[]
[null,"SAM",21]
[]
[null,"D",22]
[]
[34,"LUN",23]
[]
[null,"MAR",24]
[]
[null,"MER",25]
[]
[null,"JEU",26]
[]
[null,"VEN",27]
[]
[null,"SAM",28]
[]
[null,"D",29]
[]
[35,"LUN",30]
[]
[null,"MAR",31]
[]
[null,null,null,null,null,null,9,0,13,12,2]

{"sheet":"Septembre","index":4,"n_rows":0,"n_cols":0,"rows_kept":0,"cut":false,"hidden":false,"merged":[]}

{"sheet":"Octobre","index":5,"n_rows":0,"n_cols":0,"rows_kept":0,"cut":false,"hidden":false,"merged":[]}

{"sheet":"Novembre","index":6,"n_rows":0,"n_cols":0,"rows_kept":0,"cut":false,"hidden":false,"merged":[]}

{"sheet":"Décembre","index":7,"n_rows":0,"n_cols":0,"rows_kept":0,"cut":false,"hidden":false,"merged":[]}

{"sheet":"Janvier","index":8,"n_rows":0,"n_cols":0,"rows_kept":0,"cut":false,"hidden":false,"merged":[]}

{"sheet":"Février","index":9,"n_rows":0,"n_cols":0,"rows_kept":0,"cut":false,"hidden":false,"merged":[]}

{"sheet":"Mars","index":10,"n_rows":0,"n_cols":0,"rows_kept":0,"cut":false,"hidden":false,"merged":[]}

{"sheet":"Avril","index":11,"n_rows":0,"n_cols":0,"rows_kept":0,"cut":false,"hidden":false,"merged":[]}

{"sheet":"Mai","index":12,"n_rows":0,"n_cols":0,"rows_kept":0,"cut":false,"hidden":false,"merged":[]}

{"sheet":"Feuil14","index":13,"n_rows":130,"n_cols":47,"rows_kept":130,"cut":false,"hidden":false,"merged":[[129,0,129,6],[125,14,126,14],[125,24,126,24],[125,25,126,25],[125,27,126,27],[125,28,126,28],[125,29,126,29],[125,6,126,6],[125,8,126,8],[125,9,126,9],[125,11,126,11],[125,12,126,12],[125,13,126,13],[123,33,124,33],[123,35,124,35],[123,36,124,36],[125,0,126,0],[125,1,126,1],[125,3,126,3],[125,4,126,4],[125,5,126,5],[123,25,124,25],[123,27,124,27],[123,28,124,28],[123,29,124,29],[123,30,124,30],[123,32,124,32],[123,17,124,17],[123,19,124,19],[123,20,124,20],[123,21,124,21],[123,22,124,22],[123,24,124,24],[123,9,124,9],[123,11,124,11],[123,12,124,12],[123,13,124,13],[123,14,124,14],[123,16,124,16],[125,30,126,30],[121,37,122,37],[121,38,122,38],[123,0,124,0],[123,1,124,1],[123,3,124,3],[123,4,124,4],[123,5,124,5],[123,6,124,6],[123,8,124,8],[121,28,122,28],[121,29,122,29],[121,30,122,30],[121,32,122,32],[121,33,122,33],[121,35,122,35],[121,20,122,20],[121,21,122,21],[121,22,122,22],[121,24,122,24],[121,25,122,25],[121,27,122,27],[121,12,122,12],[121,13,122,13],[121,14,122,14],[121,16,122,16],[121,17,122,17],[121,19,122,19],[123,37,124,37],[123,38,124,38],[121,0,122,0],[121,1,122,1],[121,3,122,3],[121,4,122,4],[121,5,122,5],[121,6,122,6],[121,8,122,8],[121,9,122,9],[121,11,122,11],[119,30,120,30],[119,32,120,32],[119,33,120,33],[119,35,120,35],[119,36,120,36],[119,37,120,37],[119,22,120,22],[119,24,120,24],[119,25,120,25],[119,27,120,27],[119,28,120,28],[119,29,120,29],[119,14,120,14],[119,16,120,16],[119,17,120,17],[119,19,120,19],[119,20,120,20],[119,21,120,21],[119,6,120,6],[119,8,120,8],[119,9,120,9],[119,11,120,11],[121,36,122,36],[119,12,120,12],[119,13,120,13],[117,33,118,33],[117,35,118,35],[117,36,118,36],[117,37,118,37],[117,38,118,38],[119,0,120,0],[119,1,120,1],[119,3,120,3],[119,4,120,4],[119,5,120,5],[117,25,118,25],[117,27,118,27],[117,28,118,28],[117,29,118,29],[117,30,118,30],[117,32,118,32],[117,17,118,17],[117,19,118,19],[117,20,118,20],[117,21,118,21],[117,22,118,22],[117,24,118,24],[117,9,118,9],[117,11,118,11],[117,12,118,12],[117,13,118,13],[117,14,118,14],[117,16,118,16],[119,38,120,38],[115,37,116,37],[115,38,116,38],[117,0,118,0],[117,1,118,1],[117,3,118,3],[117,4,118,4],[117,5,118,5],[117,6,118,6],[117,8,118,8],[115,28,116,28],[115,29,116,29],[115,30,116,30],[115,32,116,32],[115,33,116,33],[115,35,116,35],[115,20,116,20],[115,21,116,21],[115,22,116,22],[115,24,116,24],[115,25,116,25],[115,27,116,27],[115,12,116,12],[115,13,116,13],[115,14,116,14],[115,16,116,16],[115,17,116,17],[115,19,116,19],[115,0,116,0],[115,1,116,1],[115,3,116,3],[115,4,116,4],[115,5,116,5],[115,6,116,6],[115,8,116,8],[115,9,116,9],[115,11,116,11],[113,30,114,30],[113,32,114,32],[113,33,114,33],[113,35,114,35],[113,36,114,36],[113,37,114,37],[113,22,114,22],[113,24,114,24],[113,25,114,25],[113,27,114,27],[113,28,114,28],[113,29,114,29],[113,14,114,14],[113,16,114,16],[113,17,114,17],[113,19,114,19],[113,20,114,20],[113,21,114,21],[113,6,114,6],[113,8,114,8],[113,9,114,9],[113,11,114,11],[115,36,116,36],[113,12,114,12],[113,13,114,13],[111,33,112,33],[111,35,112,35],[111,36,112,36],[111,37,112,37],[111,38,112,38],[113,0,114,0],[113,1,114,1],[113,3,114,3],[113,4,114,4],[113,5,114,5],[111,25,112,25],[111,27,112,27],[111,28,112,28],[111,29,112,29],[111,30,112,30],[111,32,112,32],[111,17,112,17],[111,19,112,19],[111,20,112,20],[111,21,112,21],[111,22,112,22],[111,24,112,24],[111,9,112,9],[111,11,112,11],[111,12,112,12],[111,13,112,13],[111,14,112,14],[111,16,112,16],[113,38,114,38],[109,38,110,38],[111,0,112,0],[111,1,112,1],[111,3,112,3],[111,4,112,4],[111,5,112,5],[111,6,112,6],[111,8,112,8],[109,28,110,28],[109,29,110,29],[109,30,110,30],[109,32,110,32],[109,33,110,33],[109,35,110,35],[109,20,110,20],[109,21,110,21],[109,22,110,22],[109,24,110,24],[109,25,110,25],[109,27,110,27],[109,12,110,12],[109,13,110,13],[109,14,110,14],[109,16,110,16],[109,17,110,17],[109,19,110,19],[109,0,110,0],[109,1,110,1],[109,3,110,3],[109,4,110,4],[109,5,110,5],[109,6,110,6],[109,11,110,11],[107,30,108,30],[107,32,108,32],[107,33,108,33],[107,35,108,35],[107,36,108,36],[107,37,108,37],[107,22,108,22],[107,24,108,24],[107,25,108,25],[107,27,108,27],[107,28,108,28],[107,29,108,29],[107,14,108,14],[107,16,108,16],[107,17,108,17],[107,19,108,19],[107,20,108,20],[107,21,108,21],[107,9,108,9],[107,11,108,11],[109,36,110,36],[107,12,108,12],[107,13,108,13],[109,37,110,37],[105,35,106,35],[105,36,106,36],[105,37,106,37],[105,38,106,38],[107,0,108,0],[107,1,108,1],[107,3,108,3],[107,4,108,4],[107,5,108,5],[105,25,106,25],[105,27,106,27],[105,28,106,28],[105,29,106,29],[105,30,106,30],[105,32,106,32],[105,17,106,17],[105,19,106,19],[105,20,106,20],[105,21,106,21],[105,22,106,22],[105,24,106,24],[105,9,106,9],[105,11,106,11],[105,12,106,12],[109,8,110,8],[109,9,110,9],[105,16,106,16],[107,38,108,38],[103,38,104,38],[105,0,106,0],[105,1,106,1],[105,3,106,3],[105,4,106,4],[105,5,106,5],[105,6,106,6],[105,8,106,8],[103,28,104,28],[103,29,104,29],[103,30,104,30],[103,32,104,32],[103,33,104,33],[103,35,104,35],[103,20,104,20],[103,21,104,21],[103,22,104,22],[103,24,104,24],[103,25,104,25],[103,27,104,27],[103,12,104,12],[103,13,104,13],[103,14,104,14],[103,16,104,16],[103,17,104,17],[103,19,104,19],[103,0,104,0],[103,1,104,1],[107,6,108,6],[107,8,108,8],[103,5,104,5],[105,33,106,33],[103,6,104,6],[103,8,104,8],[103,9,104,9],[103,11,104,11],[101,30,102,30],[101,32,102,32],[101,33,102,33],[101,35,102,35],[101,36,102,36],[101,37,102,37],[101,22,102,22],[101,24,102,24],[101,25,102,25],[101,27,102,27],[101,28,102,28],[101,29,102,29],[101,14,102,14],[101,16,102,16],[101,17,102,17],[101,19,102,19],[101,20,102,20],[101,21,102,21],[101,6,102,6],[101,8,102,8],[101,9,102,9],[101,11,102,11],[103,36,104,36],[101,12,102,12],[105,13,106,13],[105,14,106,14],[101,13,102,13],[103,37,104,37],[99,35,100,35],[99,36,100,36],[99,37,100,37],[99,38,100,38],[101,0,102,0],[101,1,102,1],[101,3,102,3],[101,4,102,4],[101,5,102,5],[99,25,100,25],[99,27,100,27],[99,28,100,28],[99,29,100,29],[99,30,100,30],[99,32,100,32],[99,17,100,17],[99,19,100,19],[99,20,100,20],[99,21,100,21],[99,22,100,22],[99,24,100,24],[99,9,100,9],[99,11,100,11],[99,12,100,12],[99,13,100,13],[99,14,100,14],[99,16,100,16],[101,38,102,38],[103,3,104,3],[103,4,104,4],[97,38,98,38],[99,0,100,0],[99,1,100,1],[99,3,100,3],[99,4,100,4],[99,5,100,5],[99,6,100,6],[99,8,100,8],[97,28,98,28],[97,29,98,29],[97,30,98,30],[97,32,98,32],[97,33,98,33],[97,35,98,35],[97,20,98,20],[97,21,98,21],[97,22,98,22],[97,24,98,24],[97,25,98,25],[97,27,98,27],[97,12,98,12],[97,13,98,13],[97,14,98,14],[97,16,98,16],[97,17,98,17],[97,19,98,19],[97,0,98,0],[97,1,98,1],[97,3,98,3],[97,4,98,4],[97,5,98,5],[99,33,100,33],[97,6,98,6],[97,8,98,8],[97,9,98,9],[97,11,98,11],[95,30,96,30],[95,32,96,32],[95,33,96,33],[95,35,96,35],[95,36,96,36],[95,37,96,37],[95,22,96,22],[95,24,96,24],[95,25,96,25],[95,27,96,27],[95,28,96,28],[95,29,96,29],[95,14,96,14],[95,16,96,16],[95,17,96,17],[95,19,96,19],[95,20,96,20],[95,21,96,21],[95,6,96,6],[95,8,96,8],[95,9,96,9],[95,11,96,11],[97,36,98,36],[95,12,96,12],[95,13,96,13],[97,37,98,37],[93,35,94,35],[93,36,94,36],[93,37,94,37],[93,38,94,38],[95,0,96,0],[95,1,96,1],[95,3,96,3],[95,4,96,4],[95,5,96,5],[93,25,94,25],[93,27,94,27],[93,28,94,28],[93,29,94,29],[93,30,94,30],[93,32,94,32],[93,17,94,17],[93,19,94,19],[93,20,94,20],[93,21,94,21],[93,22,94,22],[93,24,94,24],[93,9,94,9],[93,11,94,11],[93,12,94,12],[93,13,94,13],[93,14,94,14],[93,16,94,16],[95,38,96,38],[91,38,92,38],[93,0,94,0],[93,1,94,1],[93,3,94,3],[93,4,94,4],[93,5,94,5],[93,6,94,6],[93,8,94,8],[91,28,92,28],[91,29,92,29],[91,30,92,30],[91,32,92,32],[91,33,92,33],[91,35,92,35],[91,20,92,20],[91,21,92,21],[91,22,92,22],[91,24,92,24],[91,25,92,25],[91,27,92,27],[91,12,92,12],[91,13,92,13],[91,14,92,14],[91,16,92,16],[91,17,92,17],[91,19,92,19],[91,0,92,0],[91,1,92,1],[91,3,92,3],[91,4,92,4],[91,5,92,5],[93,33,94,33],[91,6,92,6],[91,8,92,8],[91,9,92,9],[91,11,92,11],[89,30,90,30],[89,32,90,32],[89,33,90,33],[89,35,90,35],[89,36,90,36],[89,37,90,37],[89,22,90,22],[89,24,90,24],[89,25,90,25],[89,27,90,27],[89,28,90,28],[89,29,90,29],[89,14,90,14],[89,16,90,16],[89,17,90,17],[89,19,90,19],[89,20,90,20],[89,21,90,21],[89,6,90,6],[89,8,90,8],[89,9,90,9],[89,11,90,11],[91,36,92,36],[89,12,90,12],[89,13,90,13],[91,37,92,37],[87,35,88,35],[87,36,88,36],[87,37,88,37],[87,38,88,38],[89,0,90,0],[89,1,90,1],[89,3,90,3],[89,4,90,4],[89,5,90,5],[87,25,88,25],[87,27,88,27],[87,28,88,28],[87,29,88,29],[87,30,88,30],[87,32,88,32],[87,17,88,17],[87,19,88,19],[87,20,88,20],[87,21,88,21],[87,22,88,22],[87,24,88,24],[87,9,88,9],[87,11,88,11],[87,12,88,12],[87,13,88,13],[87,14,88,14],[87,16,88,16],[89,38,90,38],[85,38,86,38],[87,0,88,0],[87,1,88,1],[87,3,88,3],[87,4,88,4],[87,5,88,5],[87,6,88,6],[87,8,88,8],[85,28,86,28],[85,29,86,29],[85,30,86,30],[85,32,86,32],[85,33,86,33],[85,35,86,35],[85,20,86,20],[85,21,86,21],[85,22,86,22],[85,24,86,24],[85,25,86,25],[85,27,86,27],[85,12,86,12],[85,13,86,13],[85,14,86,14],[85,16,86,16],[85,17,86,17],[85,19,86,19],[85,0,86,0],[85,1,86,1],[85,3,86,3],[85,4,86,4],[85,5,86,5],[87,33,88,33],[85,6,86,6],[85,8,86,8],[85,9,86,9],[85,11,86,11],[83,30,84,30],[83,32,84,32],[83,33,84,33],[83,35,84,35],[83,36,84,36],[83,37,84,37],[83,22,84,22],[83,24,84,24],[83,25,84,25],[83,27,84,27],[83,28,84,28],[83,29,84,29],[83,14,84,14],[83,16,84,16],[83,17,84,17],[83,19,84,19],[83,20,84,20],[83,21,84,21],[83,6,84,6],[83,8,84,8],[83,9,84,9],[83,11,84,11],[85,36,86,36],[83,12,84,12],[83,13,84,13],[85,37,86,37],[81,35,82,35],[81,36,82,36],[81,37,82,37],[81,38,82,38],[83,0,84,0],[83,1,84,1],[83,3,84,3],[83,4,84,4],[83,5,84,5],[81,25,82,25],[81,27,82,27],[81,28,82,28],[81,29,82,29],[81,30,82,30],[81,32,82,32],[81,17,82,17],[81,19,82,19],[81,20,82,20],[81,21,82,21],[81,22,82,22],[81,24,82,24],[81,9,82,9],[81,11,82,11],[81,12,82,12],[81,13,82,13],[81,14,82,14],[81,16,82,16],[83,38,84,38],[79,38,80,38],[81,0,82,0],[81,1,82,1],[81,3,82,3],[81,4,82,4],[81,5,82,5],[81,6,82,6],[81,8,82,8],[79,28,80,28],[79,29,80,29],[79,30,80,30],[79,32,80,32],[79,33,80,33],[79,35,80,35],[79,20,80,20],[79,21,80,21],[79,22,80,22],[79,24,80,24],[79,25,80,25],[79,27,80,27],[79,12,80,12],[79,13,80,13],[79,14,80,14],[79,16,80,16],[79,17,80,17],[79,19,80,19],[79,0,80,0],[79,1,80,1],[79,3,80,3],[79,4,80,4],[79,5,80,5],[81,33,82,33],[79,6,80,6],[79,8,80,8],[79,9,80,9],[79,11,80,11],[77,30,78,30],[77,32,78,32],[77,33,78,33],[77,35,78,35],[77,36,78,36],[77,37,78,37],[77,22,78,22],[77,24,78,24],[77,25,78,25],[77,27,78,27],[77,28,78,28],[77,29,78,29],[77,14,78,14],[77,16,78,16],[77,17,78,17],[77,19,78,19],[77,20,78,20],[77,21,78,21],[77,6,78,6],[77,8,78,8],[77,9,78,9],[77,11,78,11],[79,36,80,36],[79,37,80,37],[73,19,74,19],[77,12,78,12],[77,13,78,13],[75,33,76,33],[75,35,76,35],[75,36,76,36],[75,37,76,37],[75,38,76,38],[77,0,78,0],[77,1,78,1],[77,3,78,3],[77,4,78,4],[77,5,78,5],[75,25,76,25],[75,27,76,27],[75,28,76,28],[75,29,76,29],[75,30,76,30],[75,32,76,32],[75,17,76,17],[75,19,76,19],[75,20,76,20],[75,21,76,21],[75,22,76,22],[75,24,76,24],[75,9,76,9],[75,11,76,11],[75,12,76,12],[75,13,76,13],[75,14,76,14],[75,16,76,16],[77,38,78,38],[71,21,72,21],[71,6,72,6],[71,8,72,8],[71,9,72,9],[71,11,72,11],[73,36,74,36],[73,37,74,37],[73,38,74,38],[75,0,76,0],[75,1,76,1],[75,3,76,3],[75,4,76,4],[75,5,76,5],[75,6,76,6],[75,8,76,8],[73,28,74,28],[73,29,74,29],[73,30,74,30],[73,32,74,32],[73,33,74,33],[73,35,74,35],[73,20,74,20],[73,21,74,21],[73,22,74,22],[73,24,74,24],[73,25,74,25],[73,27,74,27],[73,12,74,12],[73,13,74,13],[73,14,74,14],[73,16,74,16],[73,17,74,17],[69,11,70,11],[69,12,70,12],[69,13,70,13],[69,14,70,14],[69,16,70,16],[71,38,72,38],[73,0,74,0],[73,1,74,1],[73,3,74,3],[73,4,74,4],[73,5,74,5],[73,6,74,6],[73,8,74,8],[73,9,74,9],[73,11,74,11],[71,30,72,30],[71,32,72,32],[71,33,72,33],[71,35,72,35],[71,36,72,36],[71,37,72,37],[71,22,72,22],[71,24,72,24],[71,25,72,25],[71,27,72,27],[71,28,72,28],[71,29,72,29],[71,14,72,14],[71,16,72,16],[71,17,72,17],[71,19,72,19],[71,20,72,20],[67,27,68,27],[67,12,68,12],[67,13,68,13],[67,14,68,14],[67,16,68,16],[67,17,68,17],[67,19,68,19],[71,12,72,12],[71,13,72,13],[69,33,70,33],[69,35,70,35],[69,36,70,36],[69,37,70,37],[69,38,70,38],[71,0,72,0],[71,1,72,1],[71,3,72,3],[71,4,72,4],[71,5,72,5],[69,25,70,25],[69,27,70,27],[69,28,70,28],[69,29,70,29],[69,30,70,30],[69,32,70,32],[69,17,70,17],[69,19,70,19],[69,20,70,20],[69,21,70,21],[69,22,70,22],[69,24,70,24],[69,9,70,9],[65,29,66,29],[65,14,66,14],[65,16,66,16],[65,17,66,17],[65,19,66,19],[65,20,66,20],[65,21,66,21],[65,6,66,6],[65,8,66,8],[65,9,66,9],[65,11,66,11],[67,36,68,36],[67,37,68,37],[67,38,68,38],[69,0,70,0],[69,1,70,1],[69,3,70,3],[69,4,70,4],[69,5,70,5],[69,6,70,6],[69,8,70,8],[67,28,68,28],[67,29,68,29],[67,30,68,30],[67,32,68,32],[67,33,68,33],[67,35,68,35],[67,20,68,20],[67,21,68,21],[67,22,68,22],[67,24,68,24],[67,25,68,25],[61,17,62,17],[61,19,62,19],[61,20,62,20],[61,21,62,21],[61,22,62,22],[61,0,62,0],[61,1,62,1],[61,3,62,3],[61,4,62,4],[61,5,62,5],[61,6,62,6],[65,38,66,38],[67,0,68,0],[67,1,68,1],[67,3,68,3],[67,4,68,4],[67,5,68,5],[67,6,68,6],[67,8,68,8],[67,9,68,9],[67,11,68,11],[65,30,66,30],[65,32,66,32],[65,33,66,33],[65,35,66,35],[65,36,66,36],[65,37,66,37],[65,22,66,22],[65,24,66,24],[65,25,66,25],[65,27,66,27],[65,28,66,28],[59,46,60,46],[59,32,60,32],[59,33,60,33],[59,35,60,35],[59,36,60,36],[59,37,60,37],[59,38,60,38],[59,24,60,24],[59,25,60,25],[59,27,60,27],[59,28,60,28],[59,29,60,29],[59,30,60,30],[65,12,66,12],[65,13,66,13],[64,0,64,6],[64,8,64,14],[64,16,64,22],[64,24,64,30],[64,32,64,38],[65,0,66,0],[65,1,66,1],[65,3,66,3],[65,4,66,4],[65,5,66,5],[61,32,62,32],[61,33,62,33],[61,35,62,35],[61,36,62,36],[61,37,62,37],[61,38,62,38],[61,16,62,16],[59,16,60,16],[59,17,60,17],[59,19,60,19],[59,20,60,20],[59,21,60,21],[59,22,60,22],[59,0,60,0],[59,1,60,1],[59,3,60,3],[59,4,60,4],[59,5,60,5],[59,6,60,6],[57,40,58,40],[57,41,58,41],[57,43,58,43],[57,44,58,44],[57,45,58,45],[57,0,58,0],[57,1,58,1],[57,3,58,3],[57,4,58,4],[57,5,58,5],[57,6,58,6],[59,40,60,40],[59,41,60,41],[59,43,60,43],[59,44,60,44],[59,45,60,45],[57,46,58,46],[57,32,58,32],[57,33,58,33],[57,35,58,35],[57,36,58,36],[57,37,58,37],[57,38,58,38],[57,24,58,24],[57,25,58,25],[57,27,58,27],[57,28,58,28],[57,29,58,29],[57,30,58,30],[57,16,58,16],[57,17,58,17],[57,19,58,19],[57,20,58,20]],"merged_total":2016,"flags":["merged_cut"]}
["JANVIER",null,null,null,null,null,null,null,"FÉVRIER",null,null,null,null,null,null,null,"MARS",null,null,null,null,null,null,null,"AVRIL",null,null,null,null,null,null,null,"MAI",null,null,null,null,null,null,null,"JUIN"]
["VEN",1,"1-364",null,null,null,null,null,"LUN",1,"32-333",null,null,null,"05",null,"LUN",1,"60-305",null,null,null,"09",null,"JEU",1,"91-274",null,null,null,null,null,"SAM",1,"121-244",null,null,null,null,null,"MAR",1,"152-213"]
[null,null,"JOUR DE L'AN",null,null,null,null,null,null,null,"Ella",null,null,null,null,null,null,null,"Aubin",null,null,null,null,null,null,null,"Hugues",null,null,null,null,null,null,null,"FÊTE DU TRAVAIL",null,null,null,null,null,null,null,"Justin"]
["SAM",2,"2-363",null,null,null,null,null,"MAR",2,"33-332",null,null,null,null,null,"MAR",2,"61-304",null,null,null,null,null,"VEN",2,"92-273",null,null,null,null,null,"D",2,"122-243",null,null,null,null,null,"MER",2,"153-212"]
[null,null,"Basile",null,null,null,null,null,null,null,"Présentation",null,null,null,null,null,null,null,"Ch.le Bon",null,null,null,null,null,null,null,"Sandrine",null,null,null,null,null,null,null,"Boris",null,null,null,null,null,null,null,"Blandine"]
["D",3,"3-362",null,null,null,null,null,"MER",3,"34-331",null,null,null,null,null,"MER",3,"62-303",null,null,null,null,null,"SAM",3,"93-272",null,null,null,null,null,"LUN",3,"123-242",null,null,null,18,null,"JEU",3,"154-211"]
[null,null,"Epiphanie",null,null,null,null,null,null,null,"Blaise",null,null,null,null,null,null,null,"Guénolé",null,null,null,null,null,null,null,"Richard",null,null,null,null,null,null,null,"Phil.,Jacq.",null,null,null,null,null,null,null,"Kévin"]
["LUN",4,"4-361",null,null,null,"01",null,"JEU",4,"35-330",null,null,null,null,null,"JEU",4,"63-302",null,null,null,null,null,"D",4,"94-271",null,null,null,null,null,"MAR",4,"124-241",null,null,null,null,null,"VEN",4,"155-210"]
[null,null,"Odilon",null,null,null,null,null,null,null,"Véronique",null,null,null,null,null,null,null,"Casimir",null,null,null,null,null,null,null,"PÂQUES",null,null,null,null,null,null,null,"Sylvain",null,null,null,null,null,null,null,"Clotilde"]
["MAR",5,"5-360",null,null,null,null,null,"VEN",5,"36-329",null,null,null,null,null,"VEN",5,"64-301",null,null,null,null,null,"LUN",5,"95-270",null,null,null,14,null,"MER",5,"125-240",null,null,null,null,null,"SAM",5,"156-209"]
[null,null,"Edouard",null,null,null,null,null,null,null,"Agathe",null,null,null,null,null,null,null,"Olive",null,null,null,null,null,null,null,"L. DE PÂQUES",null,null,null,null,null,null,null,"Judith",null,null,null,null,null,null,null,"Igor"]
["MER",6,"6-359",null,null,null,null,null,"SAM",6,"37-328",null,null,null,null,null,"SAM",6,"65-300",null,null,null,null,null,"MAR",6,"96-269",null,null,null,null,null,"JEU",6,"126-239",null,null,null,null,null,"D",6,"157-208"]
[null,null,"Mélaine",null,null,null,null,null,null,null,"Gaston",null,null,null,null,null,null,null,"Colette",null,null,null,null,null,null,null,"Marcellin",null,null,null,null,null,null,null,"Prudence",null,null,null,null,null,null,null,"Norbert"]
["JEU",7,"7-358",null,null,null,null,null,"D",7,"38-327",null,null,null,null,null,"D",7,"66-299",null,null,null,null,null,"MER",7,"97-268",null,null,null,null,null,"VEN",7,"127-238",null,null,null,null,null,"LUN",7,"158-207",null,null,null,23]
[null,null,"Raymond",null,null,null,null,null,null,null,"Eugénie",null,null,null,null,null,null,null,"Félicité",null,null,null,null,null,null,null,"J-B. de la Salle",null,null,null,null,null,null,null,"Gisèle",null,null,null,null,null,null,null,"Gilbert"]
["VEN",8,"8-357",null,null,null,null,null,"LUN",8,"39-326",null,null,null,"06",null,"LUN",8,"67-298",null,null,null,10,null,"JEU",8,"98-267",null,null,null,null,null,"SAM",8,"128-237",null,null,null,null,null,"MAR",8,"159-206"]
[null,null,"Lucien",null,null,null,null,null,null,null,"Jacqueline",null,null,null,null,null,null,null,"Jean de Dieu",null,null,null,null,null,null,null,"Julie",null,null,null,null,null,null,null,"VICTOIRE 1945",null,null,null,null,null,null,null,"Médard"]
["SAM",9,"9-356",null,null,null,null,null,"MAR",9,"40-325",null,null,null,null,null,"MAR",9,"68-297",null,null,null,null,null,"VEN",9,"99-266",null,null,null,null,null,"D",9,"129-236",null,null,null,null,null,"MER",9,"160-205"]
[null,null,"Alix",null,null,null,null,null,null,null,"Apolline",null,null,null,null,null,null,null,"Françoise",null,null,null,null,null,null,null,"Gautier",null,null,null,null,null,null,null,"Pacôme",null,null,null,null,null,null,null,"Diane"]
["D",10,"10-355",null,null,null,null,null,"MER",10,"41-324",null,null,null,null,null,"MER",10,"69-296",null,null,null,null,null,"SAM",10,"100-265",null,null,null,null,null,"LUN",10,"130-235",null,null,null,19,null,"JEU",10,"161-204"]
[null,null,"Guillaume",null,null,null,null,null,null,null,"Arnaud",null,null,null,null,null,null,null,"Vivien",null,null,null,null,null,null,null,"Fulbert",null,null,null,null,null,null,null,"Solange",null,null,null,null,null,null,null,"Landry"]
["LUN",11,"11-354",null,null,null,"02",null,"JEU",11,"42-323",null,null,null,null,null,"JEU",11,"70-295",null,null,null,null,null,"D",11,"101-264",null,null,null,null,null,"MAR",11,"131-234",null,null,null,null,null,"VEN",11,"162-203"]
[null,null,"Pauline",null,null,null,null,null,null,null,"ND de Lourdes",null,null,null,null,null,null,null,"Rosine",null,null,null,null,null,null,null,"Stanislas",null,null,null,null,null,null,null,"Estelle",null,null,null,null,null,null,null,"Barnabé"]
["MAR",12,"12-353",null,null,null,null,null,"VEN",12,"43-322",null,null,null,null,null,"VEN",12,"71-294",null,null,null,null,null,"LUN",12,"102-263",null,null,null,15,null,"MER",12,"132-233",null,null,null,null,null,"SAM",12,"163-202"]
[null,null,"Tatiana",null,null,null,null,null,null,null,"Félix",null,null,null,null,null,null,null,"Justine",null,null,null,null,null,null,null,"Jules",null,null,null,null,null,null,null,"Achille",null,null,null,null,null,null,null,"Guy"]
["MER",13,"13-352",null,null,null,null,null,"SAM",13,"44-321",null,null,null,null,null,"SAM",13,"72-293",null,null,null,null,null,"MAR",13,"103-262",null,null,null,null,null,"JEU",13,"133-232",null,null,null,null,null,"D",13,"164-201"]
[null,null,"Yvette",null,null,null,null,null,null,null,"Béatrice",null,null,null,null,null,null,null,"Rodrigue",null,null,null,null,null,null,null,"Ida",null,null,null,null,null,null,null,"ASCENSION",null,null,null,null,null,null,null,"Antoine de P."]
["JEU",14,"14-351",null,null,null,null,null,"D",14,"45-320",null,null,null,null,null,"D",14,"73-292",null,null,null,null,null,"MER",14,"104-261",null,null,null,null,null,"VEN",14,"134-231",null,null,null,null,null,"LUN",14,"165-200",null,null,null,24]
[null,null,"Nina",null,null,null,null,null,null,null,"Valentin",null,null,null,null,null,null,null,"Mathilde",null,null,null,null,null,null,null,"Maxime",null,null,null,null,null,null,null,"Matthias",null,null,null,null,null,null,null,"Elisée"]
["VEN",15,"15-350",null,null,null,null,null,"LUN",15,"46-319",null,null,null,"07",null,"LUN",15,"74-291",null,null,null,11,null,"JEU",15,"105-260",null,null,null,null,null,"SAM",15,"135-230",null,null,null,null,null,"MAR",15,"166-199"]
[null,null,"Rémi",null,null,null,null,null,null,null,"Claude",null,null,null,null,null,null,null,"Louise",null,null,null,null,null,null,null,"Paterne",null,null,null,null,null,null,null,"Denise",null,null,null,null,null,null,null,"Germaine"]
["SAM",16,"16-349",null,null,null,null,null,"MAR",16,"47-318",null,null,null,null,null,"MAR",16,"75-290",null,null,null,null,null,"VEN",16,"106-259",null,null,null,null,null,"D",16,"136-229",null,null,null,null,null,"MER",16,"167-198"]
[null,null,"Marcel",null,null,null,null,null,null,null,"Julienne",null,null,null,null,null,null,null,"Bénédicte",null,null,null,null,null,null,null,"Benoît-Joseph",null,null,null,null,null,null,null,"Honoré",null,null,null,null,null,null,null,"J. F. Régis"]
["D",17,"17-348",null,null,null,null,null,"MER",17,"48-317",null,null,null,null,null,"MER",17,"76-289",null,null,null,null,null,"SAM",17,"107-258",null,null,null,null,null,"LUN",17,"137-228",null,null,null,20,null,"JEU",17,"168-197"]
[null,null,"Roseline",null,null,null,null,null,null,null,"Alexis",null,null,null,null,null,null,null,"Patrice",null,null,null,null,null,null,null,"Anicet",null,null,null,null,null,null,null,"Pascal",null,null,null,null,null,null,null,"Hervé"]
["LUN",18,"18-347",null,null,null,"03",null,"JEU",18,"49-316",null,null,null,null,null,"JEU",18,"77-288",null,null,null,null,null,"D",18,"108-257",null,null,null,null,null,"MAR",18,"138-227",null,null,null,null,null,"VEN",18,"169-196"]
[null,null,"Prisca",null,null,null,null,null,null,null,"Bernadette",null,null,null,null,null,null,null,"Cyrille",null,null,null,null,null,null,null,"Parfait",null,null,null,null,null,null,null,"Eric",null,null,null,null,null,null,null,"Léonce"]
["MAR",19,"19-346",null,null,null,null,null,"VEN",19,"50-315",null,null,null,null,null,"VEN",19,"78-287",null,null,null,null,null,"LUN",19,"109-256",null,null,null,16,null,"MER",19,"139-226",null,null,null,null,null,"SAM",19,"170-195"]
[null,null,"Marius",null,null,null,null,null,null,null,"Gabin",null,null,null,null,null,null,null,"Joseph",null,null,null,null,null,null,null,"Emma",null,null,null,null,null,null,null,"Yves",null,null,null,null,null,null,null,"Romuald"]
["MER",20,"20-345",null,null,null,null,null,"SAM",20,"51-314",null,null,null,null,null,"SAM",20,"79-286",null,null,null,null,null,"MAR",20,"110-255",null,null,null,null,null,"JEU",20,"140-225",null,null,null,null,null,"D",20,"171-194"]
[null,null,"Sébastien",null,null,null,null,null,null,null,"Aimée",null,null,null,null,null,null,null,"PRINTEMPS/Herbert",null,null,null,null,null,null,null,"Odette",null,null,null,null,null,null,null,"Bernardin",null,null,null,null,null,null,null,"Fête des Pères"]
["JEU",21,"21-344",null,null,null,null,null,"D",21,"52-313",null,null,null,null,null,"D",21,"80-285",null,null,null,null,null,"MER",21,"111-254",null,null,null,null,null,"VEN",21,"141-224",null,null,null,null,null,"LUN",21,"172-193",null,null,null,25]
[null,null,"Agnès",null,null,null,null,null,null,null,"Damien",null,null,null,null,null,null,null,"Clémence",null,null,null,null,null,null,null,"Anselme",null,null,null,null,null,null,null,"Constantin",null,null,null,null,null,null,null,"ETE/Gonzague"]
["VEN",22,"22-343",null,null,null,null,null,"LUN",22,"53-312",null,null,null,"08",null,"LUN",22,"81-284",null,null,null,12,null,"JEU",22,"112-253",null,null,null,null,null,"SAM",22,"142-223",null,null,null,null,null,"MAR",22,"173-192"]
[null,null,"Vincent",null,null,null,null,null,null,null,"Isabelle",null,null,null,null,null,null,null,"Léa",null,null,null,null,null,null,null,"Alexandre",null,null,null,null,null,null,null,"Emile",null,null,null,null,null,null,null,"Alban"]
["SAM",23,"23-342",null,null,null,null,null,"MAR",23,"54-311",null,null,null,null,null,"MAR",23,"82-283",null,null,null,null,null,"VEN",23,"113-252",null,null,null,null,null,"D",23,"143-222",null,null,null,null,null,"MER",23,"174-191"]
[null,null,"Barnard",null,null,null,null,null,null,null,"Lazare",null,null,null,null,null,null,null,"Victorien",null,null,null,null,null,null,null,"Georges",null,null,null,null,null,null,null,"PENTECÔTE",null,null,null,null,null,null,null,"Audrey"]
["D",24,"24-341",null,null,null,null,null,"MER",24,"55-310",null,null,null,null,null,"MER",24,"83-282",null,null,null,null,null,"SAM",24,"114-251",null,null,null,null,null,"LUN",24,"144-221",null,null,null,21,null,"JEU",24,"175-190"]
[null,null,"Fr. de Sales",null,null,null,null,null,null,null,"Modeste",null,null,null,null,null,null,null,"Cath. de Suède",null,null,null,null,null,null,null,"Fidèle",null,null,null,null,null,null,null,"L. PENTECÔTE",null,null,null,null,null,null,null,"Jean-Baptiste"]
["LUN",25,"25-340",null,null,null,"04",null,"JEU",25,"56-309",null,null,null,null,null,"JEU",25,"84-281",null,null,null,null,null,"D",25,"115-250",null,null,null,null,null,"MAR",25,"145-220",null,null,null,null,null,"VEN",25,"176-189"]
[null,null,"Conv.de Paul",null,null,null,null,null,null,null,"Roméo",null,null,null,null,null,null,null,"Annonciation",null,null,null,null,null,null,null,"Marc",null,null,null,null,null,null,null,"Sophie",null,null,null,null,null,null,null,"Prosper"]
["MAR",26,"26-339",null,null,null,null,null,"VEN",26,"57-308",null,null,null,null,null,"VEN",26,"85-280",null,null,null,null,null,"LUN",26,"116-249",null,null,null,17,null,"MER",26,"146-219",null,null,null,null,null,"SAM",26,"177-188"]
[null,null,"Paule",null,null,null,null,null,null,null,"Nestor",null,null,null,null,null,null,null,"Larissa",null,null,null,null,null,null,null,"Alida",null,null,null,null,null,null,null,"Bérenger",null,null,null,null,null,null,null,"Anthelme"]
["MER",27,"27-338",null,null,null,null,null,"SAM",27,"58-307",null,null,null,null,null,"SAM",27,"86-279",null,null,null,null,null,"MAR",27,"117-248",null,null,null,null,null,"JEU",27,"147-218",null,null,null,null,null,"D",27,"178-187"]
[null,null,"Angèle",null,null,null,null,null,null,null,"Honorine",null,null,null,null,null,null,null,"Habib",null,null,null,null,null,null,null,"Zita",null,null,null,null,null,null,null,"Augustin",null,null,null,null,null,null,null,"Fernand"]
["JEU",28,"28-337",null,null,null,null,null,"D",28,"59-306",null,null,null,null,null,"D",28,"87-278",null,null,null,null,null,"MER",28,"118-247",null,null,null,null,null,"VEN",28,"148-217",null,null,null,null,null,"LUN",28,"179-186",null,null,null,26]
[null,null,"Th. d'Aquin",null,null,null,null,null,null,null,"Romain",null,null,null,null,null,null,null,"Gontran +1h",null,null,null,null,null,null,null,"Valérie",null,null,null,null,null,null,null,"Germain",null,null,null,null,null,null,null,"Irénée"]
["VEN",29,"29-336",null,null,null,null,null,null,null,null,null,null,null,null,null,"LUN",29,"88-277",null,null,null,13,null,"JEU",29,"119-246",null,null,null,null,null,"SAM",29,"149-216",null,null,null,null,null,"MAR",29,"180-185"]
[null,null,"Gildas",null,null,null,null,null,null,null,null,null,null,null,null,null,null,null,"Gwladys",null,null,null,null,null,null,null,"Cath. de Sienne",null,null,null,null,null,null,null,"Aymar",null,null,null,null,null,null,null,"Pierre-Paul"]
["SAM",30,"30-335",null,null,null,null,null,null,null,null,null,null,null,null,null,"MAR",30,"89-276",null,null,null,null,null,"VEN",30,"120-245",null,null,null,null,null,"D",30,"150-215",null,null,null,null,null,"MER",30,"181-184"]
[null,null,"Martine",null,null,null,null,null,null,null,null,null,null,null,null,null,null,null,"Amédée",null,null,null,null,null,null,null,"Robert",null,null,null,null,null,null,null,"Fête des Mères",null,null,null,null,null,null,null,"Martial"]
["D",31,"31-334",null,null,null,null,null,null,null,null,null,null,null,null,null,"MER",31,"90-275",null,null,null,null,null,null,null,null,null,null,null,null,null,"LUN",31,"151-214",null,null,null,22]
[null,null,"Marcelle",null,null,null,null,null,null,null,null,null,null,null,null,null,null,null,"Benjamin",null,null,null,null,null,null,null,null,null,null,null,null,null,null,null,"Visitation"]
[]
["JUILLET",null,null,null,null,null,null,null,"AOÛT",null,null,null,null,null,null,null,"SEPTEMBRE",null,null,null,null,null,null,null,"OCTOBRE",null,null,null,null,null,null,null,"NOVEMBRE",null,null,null,null,null,null,null,"DÉCEMBRE"]
["JEU",1,"182-183",null,null,null,null,null,"D",1,"213-152",null,null,null,null,null,"MER",1,"244-121",null,null,null,null,null,"VEN",1,"274-91",null,null,null,null,null,"LUN",1,"305-60",null,null,null,44,null,"MER",1,"335-30"]
[null,null,"Thierry",null,null,null,null,null,null,null,"Alphonse",null,null,null,null,null,null,null,"Gilles",null,null,null,null,null,null,null,"Thé. de l'E. Jésus",null,null,null,null,null,null,null,"TOUSSAINT",null,null,null,null,null,null,null,"Florence"]
["VEN",2,"183-182",null,null,null,null,null,"LUN",2,"214-151",null,null,null,31,null,"JEU",2,"245-120",null,null,null,null,null,"SAM",2,"275-90",null,null,null,null,null,"MAR",2,"306-59",null,null,null,null,null,"JEU",2,"336-29"]
[null,null,"Martinien",null,null,null,null,null,null,null,"Julien Eymard",null,null,null,null,null,null,null,"Ingrid",null,null,null,null,null,null,null,"Léger",null,null,null,null,null,null,null,"Défunts",null,null,null,null,null,null,null,"Viviane"]
["SAM",3,"184-181",null,null,null,null,null,"MAR",3,"215-150",null,null,null,null,null,"VEN",3,"246-119",null,null,null,null,null,"D",3,"276-89",null,null,null,null,null,"MER",3,"307-58",null,null,null,null,null,"VEN",3,"337-28"]
[null,null,"Thomas",null,null,null,null,null,null,null,"Lydie",null,null,null,null,null,null,null,"Grégoire",null,null,null,null,null,null,null,"Gérard",null,null,null,null,null,null,null,"Hubert",null,null,null,null,null,null,null,"François Xavier"]
["D",4,"185-180",null,null,null,null,null,"MER",4,"216-149",null,null,null,null,null,"SAM",4,"247-118",null,null,null,null,null,"LUN",4,"277-88",null,null,null,40,null,"JEU",4,"308-57",null,null,null,null,null,"SAM",4,"338-27"]
[null,null,"Florent",null,null,null,null,null,null,null,"Jean-M. Vianney",null,null,null,null,null,null,null,"Rosalie",null,null,null,null,null,null,null,"Fr. d'Assise",null,null,null,null,null,null,null,"Charles",null,null,null,null,null,null,null,"Barbara"]
["LUN",5,"186-179",null,null,null,27,null,"JEU",5,"217-148",null,null,null,null,null,"D",5,"248-117",null,null,null,null,null,"MAR",5,"278-87",null,null,null,null,null,"VEN",5,"309-56",null,null,null,null,null,"D",5,"339-26"]
[null,null,"Antoine",null,null,null,null,null,null,null,"Abel",null,null,null,null,null,null,null,"Raïssa",null,null,null,null,null,null,null,"Fleur",null,null,null,null,null,null,null,"Sylvie",null,null,null,null,null,null,null,"Gérald"]
["MAR",6,"187-178",null,null,null,null,null,"VEN",6,"218-147",null,null,null,null,null,"LUN",6,"249-116",null,null,null,36,null,"MER",6,"279-86",null,null,null,null,null,"SAM",6,"310-55",null,null,null,null,null,"LUN",6,"340-25",null,null,null,49]
[null,null,"Mariette",null,null,null,null,null,null,null,"Transfiguration",null,null,null,null,null,null,null,"Bertrand",null,null,null,null,null,null,null,"Bruno",null,null,null,null,null,null,null,"Bertille",null,null,null,null,null,null,null,"Nicolas"]
["MER",7,"188-177",null,null,null,null,null,"SAM",7,"219-146",null,null,null,null,null,"MAR",7,"250-115",null,null,null,null,null,"JEU",7,"280-85",null,null,null,null,null,"D",7,"311-54",null,null,null,null,null,"MAR",7,"341-24"]
[null,null,"Raoul",null,null,null,null,null,null,null,"Gaétan",null,null,null,null,null,null,null,"Reine",null,null,null,null,null,null,null,"Serge",null,null,null,null,null,null,null,"Carine",null,null,null,null,null,null,null,"Ambroise"]
["JEU",8,"189-176",null,null,null,null,null,"D",8,"220-145",null,null,null,null,null,"MER",8,"251-114",null,null,null,null,null,"VEN",8,"281-84",null,null,null,null,null,"LUN",8,"312-53",null,null,null,45,null,"MER",8,"342-23"]
[null,null,"Thibault",null,null,null,null,null,null,null,"Dominique",null,null,null,null,null,null,null,"Nativité",null,null,null,null,null,null,null,"Pélagie",null,null,null,null,null,null,null,"Geoffroy",null,null,null,null,null,null,null,"Imm. Conception"]
["VEN",9,"190-175",null,null,null,null,null,"LUN",9,"221-144",null,null,null,32,null,"JEU",9,"252-113",null,null,null,null,null,"SAM",9,"282-83",null,null,null,null,null,"MAR",9,"313-52",null,null,null,null,null,"JEU",9,"343-22"]
[null,null,"Amandine",null,null,null,null,null,null,null,"Amour",null,null,null,null,null,null,null,"Alain",null,null,null,null,null,null,null,"Denis",null,null,null,null,null,null,null,"Théodore",null,null,null,null,null,null,null,"Pierre Fourier"]
["SAM",10,"191-174",null,null,null,null,null,"MAR",10,"222-143",null,null,null,null,null,"VEN",10,"253-112",null,null,null,null,null,"D",10,"283-82",null,null,null,null,null,"MER",10,"314-51",null,null,null,null,null,"VEN",10,"344-21"]
[null,null,"Ulrich",null,null,null,null,null,null,null,"Laurent",null,null,null,null,null,null,null,"Inès",null,null,null,null,null,null,null,"Ghislain",null,null,null,null,null,null,null,"Léon",null,null,null,null,null,null,null,"Romaric"]
["D",11,"192-173",null,null,null,null,null,"MER",11,"223-142",null,null,null,null,null,"SAM",11,"254-111",null,null,null,null,null,"LUN",11,"284-81",null,null,null,41,null,"JEU",11,"315-50",null,null,null,null,null,"SAM",11,"345-20"]
[null,null,"Benoît",null,null,null,null,null,null,null,"Claire",null,null,null,null,null,null,null,"Adelphe",null,null,null,null,null,null,null,"Firmin",null,null,null,null,null,null,null,"ARMISTICE 1918",null,null,null,null,null,null,null,"Daniel"]
["LUN",12,"193-172",null,null,null,28,null,"JEU",12,"224-141",null,null,null,null,null,"D",12,"255-110",null,null,null,null,null,"MAR",12,"285-80",null,null,null,null,null,"VEN",12,"316-49",null,null,null,null,null,"D",12,"346-19"]
[null,null,"Olivier",null,null,null,null,null,null,null,"Clarisse",null,null,null,null,null,null,null,"Apollinaire",null,null,null,null,null,null,null,"Wilfried",null,null,null,null,null,null,null,"Christian",null,null,null,null,null,null,null,"Jeanne F.C."]
["MAR",13,"194-171",null,null,null,null,null,"VEN",13,"225-140",null,null,null,null,null,"LUN",13,"256-109",null,null,null,37,null,"MER",13,"286-79",null,null,null,null,null,"SAM",13,"317-48",null,null,null,null,null,"LUN",13,"347-18",null,null,null,50]
[null,null,"Henri et Joël",null,null,null,null,null,null,null,"Hippolyte",null,null,null,null,null,null,null,"Aimé",null,null,null,null,null,null,null,"Géraud",null,null,null,null,null,null,null,"Brice",null,null,null,null,null,null,null,"Lucie"]
["MER",14,"195-170",null,null,null,null,null,"SAM",14,"226-139",null,null,null,null,null,"MAR",14,"257-108",null,null,null,null,null,"JEU",14,"287-78",null,null,null,null,null,"D",14,"318-47",null,null,null,null,null,"MAR",14,"348-17"]
[null,null,"FÊTE NATIONALE",null,null,null,null,null,null,null,"Evrard",null,null,null,null,null,null,null,"Croix Glorieuse",null,null,null,null,null,null,null,"Juste",null,null,null,null,null,null,null,"Sidoine",null,null,null,null,null,null,null,"Odile"]
["JEU",15,"196-169",null,null,null,null,null,"D",15,"227-138",null,null,null,null,null,"MER",15,"258-107",null,null,null,null,null,"VEN",15,"288-77",null,null,null,null,null,"LUN",15,"319-46",null,null,null,46,null,"MER",15,"349-16"]
[null,null,"Donald",null,null,null,null,null,null,null,"ASSOMPTION",null,null,null,null,null,null,null,"Roland",null,null,null,null,null,null,null,"Thérèse d'Avila",null,null,null,null,null,null,null,"Albert",null,null,null,null,null,null,null,"Ninon"]
["VEN",16,"197-168",null,null,null,null,null,"LUN",16,"228-137",null,null,null,33,null,"JEU",16,"259-106",null,null,null,null,null,"SAM",16,"289-76",null,null,null,null,null,"MAR",16,"320-45",null,null,null,null,null,"JEU",16,"350-15"]
[null,null,"ND Mt Carmel",null,null,null,null,null,null,null,"Armel",null,null,null,null,null,null,null,"Edith",null,null,null,null,null,null,null,"Edwige",null,null,null,null,null,null,null,"Marguerite",null,null,null,null,null,null,null,"Alice"]
["SAM",17,"198-167",null,null,null,null,null,"MAR",17,"229-136",null,null,null,null,null,"VEN",17,"260-105",null,null,null,null,null,"D",17,"290-75",null,null,null,null,null,"MER",17,"321-44",null,null,null,null,null,"VEN",17,"351-14"]
[null,null,"Charlotte",null,null,null,null,null,null,null,"Hyacinthe",null,null,null,null,null,null,null,"Renaud",null,null,null,null,null,null,null,"Baudoin",null,null,null,null,null,null,null,"Elisabeth",null,null,null,null,null,null,null,"Gaël"]
["D",18,"199-166",null,null,null,null,null,"MER",18,"230-135",null,null,null,null,null,"SAM",18,"261-104",null,null,null,null,null,"LUN",18,"291-74",null,null,null,42,null,"JEU",18,"322-43",null,null,null,null,null,"SAM",18,"352-13"]
[null,null,"Frédéric",null,null,null,null,null,null,null,"Hélène",null,null,null,null,null,null,null,"Nadège",null,null,null,null,null,null,null,"Luc",null,null,null,null,null,null,null,"Aude",null,null,null,null,null,null,null,"Gatien"]
["LUN",19,"200-165",null,null,null,29,null,"JEU",19,"231-134",null,null,null,null,null,"D",19,"262-103",null,null,null,null,null,"MAR",19,"292-73",null,null,null,null,null,"VEN",19,"323-42",null,null,null,null,null,"D",19,"353-12"]
[null,null,"Arsène",null,null,null,null,null,null,null,"Jean Eudes",null,null,null,null,null,null,null,"Emilie",null,null,null,null,null,null,null,"René",null,null,null,null,null,null,null,"Tanguy",null,null,null,null,null,null,null,"Urbain"]
["MAR",20,"201-164",null,null,null,null,null,"VEN",20,"232-133",null,null,null,null,null,"LUN",20,"263-102",null,null,null,38,null,"MER",20,"293-72",null,null,null,null,null,"SAM",20,"324-41",null,null,null,null,null,"LUN",20,"354-11",null,null,null,51]
[null,null,"Marina",null,null,null,null,null,null,null,"Bernard",null,null,null,null,null,null,null,"Davy",null,null,null,null,null,null,null,"Adeline",null,null,null,null,null,null,null,"Edmond",null,null,null,null,null,null,null,"Théophile"]
["MER",21,"202-163",null,null,null,null,null,"SAM",21,"233-132",null,null,null,null,null,"MAR",21,"264-101",null,null,null,null,null,"JEU",21,"294-71",null,null,null,null,null,"D",21,"325-40",null,null,null,null,null,"MAR",21,"355-10"]
[null,null,"Victor",null,null,null,null,null,null,null,"Christophe",null,null,null,null,null,null,null,"Matthieu",null,null,null,null,null,null,null,"Céline",null,null,null,null,null,null,null,"Prés. de Marie",null,null,null,null,null,null,null,"HIVER/Pierre C."]
["JEU",22,"203-162",null,null,null,null,null,"D",22,"234-131",null,null,null,null,null,"MER",22,"265-100",null,null,null,null,null,"VEN",22,"295-70",null,null,null,null,null,"LUN",22,"326-39",null,null,null,47,null,"MER",22,"356-9"]
[null,null,"Marie Madeleine",null,null,null,null,null,null,null,"Fabrice",null,null,null,null,null,null,null,"AUTOMNE/Maurice",null,null,null,null,null,null,null,"Elodie",null,null,null,null,null,null,null,"Cécile",null,null,null,null,null,null,null,"Françoise Xavière"]
["VEN",23,"204-161",null,null,null,null,null,"LUN",23,"235-130",null,null,null,34,null,"JEU",23,"266-99",null,null,null,null,null,"SAM",23,"296-69",null,null,null,null,null,"MAR",23,"327-38",null,null,null,null,null,"JEU",23,"357-8"]
[null,null,"Brigitte",null,null,null,null,null,null,null,"Rose de Lima",null,null,null,null,null,null,null,"Constant",null,null,null,null,null,null,null,"Jean de Capistran",null,null,null,null,null,null,null,"Clément",null,null,null,null,null,null,null,"Armand"]
["SAM",24,"205-160",null,null,null,null,null,"MAR",24,"236-129",null,null,null,null,null,"VEN",24,"267-98",null,null,null,null,null,"D",24,"297-68",null,null,null,null,null,"MER",24,"328-37",null,null,null,null,null,"VEN",24,"358-7"]
[null,null,"Christine",null,null,null,null,null,null,null,"Barthélémy",null,null,null,null,null,null,null,"Thècle",null,null,null,null,null,null,null,"Florentin",null,null,null,null,null,null,null,"Flora",null,null,null,null,null,null,null,"Adèle"]
["D",25,"206-159",null,null,null,null,null,"MER",25,"237-128",null,null,null,null,null,"SAM",25,"268-97",null,null,null,null,null,"LUN",25,"298-67",null,null,null,43,null,"JEU",25,"329-36",null,null,null,null,null,"SAM",25,"359-6"]
[null,null,"Jacques",null,null,null,null,null,null,null,"Louis",null,null,null,null,null,null,null,"Hermann",null,null,null,null,null,null,null,"Crépin",null,null,null,null,null,null,null,"Catherine",null,null,null,null,null,null,null,"NOËL"]
["LUN",26,"207-158",null,null,null,30,null,"JEU",26,"238-127",null,null,null,null,null,"D",26,"269-96",null,null,null,null,null,"MAR",26,"299-66",null,null,null,null,null,"VEN",26,"330-35",null,null,null,null,null,"D",26,"360-5"]
[null,null,"Anne,Joachim",null,null,null,null,null,null,null,"Natacha",null,null,null,null,null,null,null,"Côme et Damien",null,null,null,null,null,null,null,"Dimitri",null,null,null,null,null,null,null,"Delphine",null,null,null,null,null,null,null,"Etienne"]
["MAR",27,"208-157",null,null,null,null,null,"VEN",27,"239-126",null,null,null,null,null,"LUN",27,"270-95",null,null,null,39,null,"MER",27,"300-65",null,null,null,null,null,"SAM",27,"331-34",null,null,null,null,null,"LUN",27,"361-4",null,null,null,52]
[null,null,"Nathalie",null,null,null,null,null,null,null,"Monique",null,null,null,null,null,null,null,"Vinc. de Paul",null,null,null,null,null,null,null,"Emeline",null,null,null,null,null,null,null,"Sévrin",null,null,null,null,null,null,null,"Jean"]
["MER",28,"209-156",null,null,null,null,null,"SAM",28,"240-125",null,null,null,null,null,"MAR",28,"271-94",null,null,null,null,null,"JEU",28,"301-64",null,null,null,null,null,"D",28,"332-33",null,null,null,null,null,"MAR",28,"362-3"]
[null,null,"Samson",null,null,null,null,null,null,null,"Augustin",null,null,null,null,null,null,null,"Venceslas",null,null,null,null,null,null,null,"Jude",null,null,null,null,null,null,null,"Jacq. de la M.",null,null,null,null,null,null,null,"Innocents"]
["JEU",29,"210-155",null,null,null,null,null,"D",29,"241-124",null,null,null,null,null,"MER",29,"272-93",null,null,null,null,null,"VEN",29,"302-63",null,null,null,null,null,"LUN",29,"333-32",null,null,null,48,null,"MER",29,"363-2"]
[null,null,"Marthe",null,null,null,null,null,null,null,"Sabine",null,null,null,null,null,null,null,"Michel",null,null,null,null,null,null,null,"Narcisse",null,null,null,null,null,null,null,"Saturnin",null,null,null,null,null,null,null,"David"]
["VEN",30,"211-154",null,null,null,null,null,"LUN",30,"242-123",null,null,null,35,null,"JEU",30,"273-92",null,null,null,null,null,"SAM",30,"303-62",null,null,null,null,null,"MAR",30,"334-31",null,null,null,null,null,"JEU",30,"364-1"]
[null,null,"Juliette",null,null,null,null,null,null,null,"Fiacre",null,null,null,null,null,null,null,"Jérôme",null,null,null,null,null,null,null,"Bienvenue",null,null,null,null,null,null,null,"André",null,null,null,null,null,null,null,"Roger"]
["SAM",31,"212-153",null,null,null,null,null,"MAR",31,"243-122",null,null,null,null,null,null,null,null,null,null,null,null,null,"D",31,"304-61",null,null,null,null,null,null,null,null,null,null,null,null,null,"VEN",31,"365-0"]
[null,null,"Ignace de L.",null,null,null,null,null,null,null,"Aristide",null,null,null,null,null,null,null,null,null,null,null,null,null,null,null,"Quentin -1h",null,null,null,null,null,null,null,null,null,null,null,null,null,null,null,"Sylvestre"]
[]
[]
["www.calendriergratuit.fr"]